BODY,BODY NAME,ENTRY DATE,POSTING DATE,TRANSACTION NUMBER,THEIR REF,AMOUNT,SUPPLIER NAME,SUPPLIER CODE,EXPENSE AREA,EXPENSE TYPE,EXPENSE CODE
http://statistics.data.gov.uk/id/local-authority/12UE,Huntingdonshire District Council,16/05/2017,18/05/2017,209952,195080,"1,371.25",CAMBRIDGE CITY COUNCIL,CR017896,Imd Shared Service,Equipment Maintenance,511
http://statistics.data.gov.uk/id/local-authority/12UE,Huntingdonshire District Council,16/05/2017,18/05/2017,209952,195080,"7,645.56",CAMBRIDGE CITY COUNCIL,CR017896,Imd Shared Service,I T Line Rental,248
http://statistics.data.gov.uk/id/local-authority/12UE,Huntingdonshire District Council,16/05/2017,18/05/2017,209952,195080,"226,359.26",CAMBRIDGE CITY COUNCIL,CR017896,Imd Shared Service,Software,206
http://statistics.data.gov.uk/id/local-authority/12UE,Huntingdonshire District Council,18/05/2017,18/05/2017,209383,6470,"79,930.00",ISUZU TRUCK UK LTD,CR424105,Vehicles & Plant Capital,Vehicles Purchased,600
http://statistics.data.gov.uk/id/local-authority/12UE,Huntingdonshire District Council,18/05/2017,18/05/2017,209384,6471,"79,930.00",ISUZU TRUCK UK LTD,CR424105,Vehicles & Plant Capital,Vehicles Purchased,600
http://statistics.data.gov.uk/id/local-authority/12UE,Huntingdonshire District Council,11/05/2017,11/05/2017,208217,20025144,"78,651.72",BT REDCARE,CR410623,Cctv Shared Service,Transmission Lines Rental,767
http://statistics.data.gov.uk/id/local-authority/12UE,Huntingdonshire District Council,09/05/2017,11/05/2017,209534,10729841,"61,332.00",CAMBRIDGESHIRE COUNTY COUNCIL,CR017440,Planning Capital,Compensation,811
http://statistics.data.gov.uk/id/local-authority/12UE,Huntingdonshire District Council,09/05/2017,09/05/2017,209551,195410,"41,089.83",CAMBRIDGE CITY COUNCIL,CR017896,B Regs Applications,Application Fee,A10
http://statistics.data.gov.uk/id/local-authority/12UE,Huntingdonshire District Council,09/05/2017,09/05/2017,209551,195410,300,CAMBRIDGE CITY COUNCIL,CR017896,B Regs Applications,Applications Partnership Fees,A66
http://statistics.data.gov.uk/id/local-authority/12UE,Huntingdonshire District Council,09/05/2017,09/05/2017,209551,195410,"15,131.50",CAMBRIDGE CITY COUNCIL,CR017896,B Regs Applications,Inspection Fee,A11
http://statistics.data.gov.uk/id/local-authority/12UE,Huntingdonshire District Council,09/05/2017,09/05/2017,209551,195410,237,CAMBRIDGE CITY COUNCIL,CR017896,B Regs Applications,Sales - Publications,A31
http://statistics.data.gov.uk/id/local-authority/12UE,Huntingdonshire District Council,11/05/2017,17/05/2017,209670,2974,"54,499.86",BURMOR CONSTRUCTION,CR032423,Ol Hdon Changing Facilities,Building Mtce,303
http://statistics.data.gov.uk/id/local-authority/12UE,Huntingdonshire District Council,18/05/2017,18/05/2017,210007,195081,"33,183.85",CAMBRIDGE CITY COUNCIL,CR017896,Imd Shared Service,Equipment Maintenance,511
http://statistics.data.gov.uk/id/local-authority/12UE,Huntingdonshire District Council,18/05/2017,18/05/2017,210007,195081,-409.19,CAMBRIDGE CITY COUNCIL,CR017896,Imd Shared Service,I T Line Rental,248
http://statistics.data.gov.uk/id/local-authority/12UE,Huntingdonshire District Council,18/05/2017,18/05/2017,210007,195081,950,CAMBRIDGE CITY COUNCIL,CR017896,Imd Shared Service,Software,206
http://statistics.data.gov.uk/id/local-authority/12UE,Huntingdonshire District Council,18/05/2017,18/05/2017,210007,195081,72.65,CAMBRIDGE CITY COUNCIL,CR017896,Imd Shared Service,Stationery,225
http://statistics.data.gov.uk/id/local-authority/12UE,Huntingdonshire District Council,18/05/2017,18/05/2017,210007,195081,138.6,CAMBRIDGE CITY COUNCIL,CR017896,Imd Shared Service,Telephone &Mobile Phonecharges,240
http://statistics.data.gov.uk/id/local-authority/12UE,Huntingdonshire District Council,25/05/2017,25/05/2017,210417,SLMR/00010712,"29,297.18",ORCHARD INFORMATION SYSTEMS LTD,CR424755,Scdc Recharge Invoices,Software,206
http://statistics.data.gov.uk/id/local-authority/12UE,Huntingdonshire District Council,04/05/2017,04/05/2017,209025,17002396,"29,143.52",FAITHFUL & GOULD,CR453585,Dc Application Processing,Consultants,711
http://statistics.data.gov.uk/id/local-authority/12UE,Huntingdonshire District Council,09/05/2017,11/05/2017,209426,8506686,"28,020.93",CERTAS ENERGY T/A PACE FUELCARE,CR455975,Stock And Work In Progress,Stock Purchases,980
http://statistics.data.gov.uk/id/local-authority/12UE,Huntingdonshire District Council,23/05/2017,23/05/2017,210316,JAC/WMC/R01107,"26,020.51",THE RAMSEY INTERNAL DRAINAGE BOARD,CR000653,Internal Drainage Boards,Levies,861
http://statistics.data.gov.uk/id/local-authority/12UE,Huntingdonshire District Council,30/05/2017,30/05/2017,210649,138145,285,GLYN HOPKIN LIMITED,CR424713,Vehicles & Plant Capital,Vehicles Purchased,600
http://statistics.data.gov.uk/id/local-authority/12UE,Huntingdonshire District Council,30/05/2017,30/05/2017,210649,138145,"23,446.34",GLYN HOPKIN LIMITED,CR424713,Vehicles & Plant Capital,Vehicles Purchased,600
http://statistics.data.gov.uk/id/local-authority/12UE,Huntingdonshire District Council,04/05/2017,04/05/2017,209193,195409,"16,899.30",CAMBRIDGE CITY COUNCIL,CR017896,Imd Shared Service,Consultants,711
http://statistics.data.gov.uk/id/local-authority/12UE,Huntingdonshire District Council,04/05/2017,04/05/2017,209193,195409,"4,786.38",CAMBRIDGE CITY COUNCIL,CR017896,Imd Shared Service,Other I T Hardware,203
http://statistics.data.gov.uk/id/local-authority/12UE,Huntingdonshire District Council,23/05/2017,23/05/2017,612047,SPECIAL LEVY,"20,373.00",RAMSEY UPWOOD & GT RAVELEY IDB,CR000655,Internal Drainage Boards,Levies,861
http://statistics.data.gov.uk/id/local-authority/12UE,Huntingdonshire District Council,25/05/2017,25/05/2017,210419,INV1846,170.51,ALIGNED ASSESTS LTD,CR482341,Scdc Recharge Invoices,Software,206
http://statistics.data.gov.uk/id/local-authority/12UE,Huntingdonshire District Council,25/05/2017,25/05/2017,210419,INV1846,"10,235.07",ALIGNED ASSESTS LTD,CR482341,Scdc Recharge Invoices,Software,206
http://statistics.data.gov.uk/id/local-authority/12UE,Huntingdonshire District Council,25/05/2017,25/05/2017,210419,INV1846,"2,545.66",ALIGNED ASSESTS LTD,CR482341,Scdc Recharge Invoices,Software,206
http://statistics.data.gov.uk/id/local-authority/12UE,Huntingdonshire District Council,25/05/2017,25/05/2017,210419,INV1846,318.21,ALIGNED ASSESTS LTD,CR482341,Scdc Recharge Invoices,Software,206
http://statistics.data.gov.uk/id/local-authority/12UE,Huntingdonshire District Council,25/05/2017,25/05/2017,210419,INV1846,"5,183.02",ALIGNED ASSESTS LTD,CR482341,Scdc Recharge Invoices,Software,206
http://statistics.data.gov.uk/id/local-authority/12UE,Huntingdonshire District Council,25/05/2017,25/05/2017,210419,INV1846,117.73,ALIGNED ASSESTS LTD,CR482341,Scdc Recharge Invoices,Software,206
http://statistics.data.gov.uk/id/local-authority/12UE,Huntingdonshire District Council,18/05/2017,18/05/2017,210032,3029928,"18,436.00",METROPOLITAN HOUSING TRUST LTD,CR487206,Homelessness Management,Hostel Revenue Support,817
http://statistics.data.gov.uk/id/local-authority/12UE,Huntingdonshire District Council,08/05/2017,08/05/2017,209391,GB10100127290,"17,690.00",ERNST & YOUNG,CR411950,Chief Executive & Comt,Audit Fees,701
http://statistics.data.gov.uk/id/local-authority/12UE,Huntingdonshire District Council,09/05/2017,09/05/2017,209068,17005113,"16,446.19",TECHNOGYM UK LTD,CR033037,One Leisure St Neots,Equipment Maintenance,511
http://statistics.data.gov.uk/id/local-authority/12UE,Huntingdonshire District Council,18/05/2017,18/05/2017,207649,INV000098,"16,150.00",SQUIRES & SON LTD,CR478185,Improvement Grants,Mandatory Grants,801
http://statistics.data.gov.uk/id/local-authority/12UE,Huntingdonshire District Council,11/05/2017,11/05/2017,209455,AC0214228,"14,400.00",ASHCO BUILDING & MAINTENANCE SERVICES LTD,CR422300,Improvement Grants,Mandatory Grants,801
http://statistics.data.gov.uk/id/local-authority/12UE,Huntingdonshire District Council,30/05/2017,30/05/2017,210650,16015009,"13,920.46",CAMBRIDGESHIRE COUNTY COUNCIL,CR006678,Chief Executive & Comt,Pension Early Retirements,151
http://statistics.data.gov.uk/id/local-authority/12UE,Huntingdonshire District Council,11/05/2017,11/05/2017,209117,SI32803,"6,480.00",SSI SCHAEFER LTD,CR407190,Recycling Equipment Capital,Recycling Bins,525
http://statistics.data.gov.uk/id/local-authority/12UE,Huntingdonshire District Council,11/05/2017,11/05/2017,209117,SI32803,"6,807.60",SSI SCHAEFER LTD,CR407190,Recycling Equipment Capital,Recycling Bins,525
http://statistics.data.gov.uk/id/local-authority/12UE,Huntingdonshire District Council,09/05/2017,09/05/2017,209066,17005112,"13,201.86",TECHNOGYM UK LTD,CR033037,One Leisure St Ives,Equipment Maintenance,511
http://statistics.data.gov.uk/id/local-authority/12UE,Huntingdonshire District Council,24/05/2017,24/05/2017,210359,S30930,"13,133.50",BSG PROPERTY SERVICES LTD,CR089905,Improvement Grants,Mandatory Grants,801
http://statistics.data.gov.uk/id/local-authority/12UE,Huntingdonshire District Council,15/05/2017,15/05/2017,209828,3256,"12,979.53",SCI PRINT LIMITED,CR416581,Elections,Printing (External),220
http://statistics.data.gov.uk/id/local-authority/12UE,Huntingdonshire District Council,31/05/2017,31/05/2017,210675,IEG4001449,"12,541.00",IEG4 LIMITED,CR453919,Software Capital,Equipment Maintenance,511
http://statistics.data.gov.uk/id/local-authority/12UE,Huntingdonshire District Council,24/05/2017,24/05/2017,210232,RD4015,"10,805.00",TERRY GROUP LTD,CR033266,Improvement Grants,Mandatory Grants,801
http://statistics.data.gov.uk/id/local-authority/12UE,Huntingdonshire District Council,18/05/2017,18/05/2017,209808,AC0214227,"10,469.16",ASHCO BUILDING & MAINTENANCE SERVICES LTD,CR422300,Improvement Grants,Mandatory Grants,801
http://statistics.data.gov.uk/id/local-authority/12UE,Huntingdonshire District Council,15/05/2017,15/05/2017,209827,3251,"10,445.00",SCI PRINT LIMITED,CR416581,Elections,Printing (External),220
http://statistics.data.gov.uk/id/local-authority/12UE,Huntingdonshire District Council,16/05/2017,17/05/2017,209862,65912,"10,256.87",HAVEN POWER LTD,CR455940,Pathfinder House Site,Electricity,420
http://statistics.data.gov.uk/id/local-authority/12UE,Huntingdonshire District Council,24/05/2017,24/05/2017,209161,S30471,"9,588.60",BSG PROPERTY SERVICES LTD,CR089905,Improvement Grants,Mandatory Grants,801
http://statistics.data.gov.uk/id/local-authority/12UE,Huntingdonshire District Council,02/05/2017,05/05/2017,209099,9054286145,968.82,ROYAL MAIL,CR027083,Document Centre,Postage,231
http://statistics.data.gov.uk/id/local-authority/12UE,Huntingdonshire District Council,02/05/2017,05/05/2017,209099,9054286145,"7,697.68",ROYAL MAIL,CR027083,Elections,Postage,231
http://statistics.data.gov.uk/id/local-authority/12UE,Huntingdonshire District Council,02/05/2017,05/05/2017,209099,9054286145,240.93,ROYAL MAIL,CR027083,Electoral Registration,Postage,231
http://statistics.data.gov.uk/id/local-authority/12UE,Huntingdonshire District Council,09/05/2017,11/05/2017,209575,ASI36860,"8,879.84",AMEYCESPA (EAST) LTD,CR127636,Recycling,Recycling Collections,747
http://statistics.data.gov.uk/id/local-authority/12UE,Huntingdonshire District Council,03/05/2017,03/05/2017,209132,19663,"8,542.86",KING STREET HOUSING SOCIETY,CR409301,Homelessness Management,Management Charge,733
http://statistics.data.gov.uk/id/local-authority/12UE,Huntingdonshire District Council,16/05/2017,17/05/2017,209865,65919,"8,512.71",HAVEN POWER LTD,CR455940,One Leisure St Ives,Electricity,420
http://statistics.data.gov.uk/id/local-authority/12UE,Huntingdonshire District Council,31/05/2017,31/05/2017,210691,SI-2517,"8,506.49",AGILE APPLICATIONS,CR424777,Scdc Recharge Invoices,Software,206
http://statistics.data.gov.uk/id/local-authority/12UE,Huntingdonshire District Council,04/05/2017,04/05/2017,209339,3198,"8,148.00",SCI PRINT LIMITED,CR416581,Elections,Printing (External),220
http://statistics.data.gov.uk/id/local-authority/12UE,Huntingdonshire District Council,16/05/2017,17/05/2017,209859,65914,"8,056.13",HAVEN POWER LTD,CR455940,One Leisure St Neots,Electricity,420
http://statistics.data.gov.uk/id/local-authority/12UE,Huntingdonshire District Council,04/05/2017,04/05/2017,209219,18326,"7,902.00",VICTOIRE PRESS LTD,CR404724,Elections,Printing (External),220
http://statistics.data.gov.uk/id/local-authority/12UE,Huntingdonshire District Council,09/05/2017,09/05/2017,209065,17005114,"7,684.40",TECHNOGYM UK LTD,CR033037,One Leisure Huntingdon,Equipment Maintenance,511
http://statistics.data.gov.uk/id/local-authority/12UE,Huntingdonshire District Council,24/05/2017,24/05/2017,210311,8042613192,"7,537.65",ANGLIAN WATER,CR000071,Housing Services Other,Water & Sewerage,432
http://statistics.data.gov.uk/id/local-authority/12UE,Huntingdonshire District Council,24/05/2017,24/05/2017,210357,C-0002520379,250.22,COMPUTERSHARE VOUCHERS LTD,CR412205,Human Resources,Childcare Admin Vouchers,144
http://statistics.data.gov.uk/id/local-authority/12UE,Huntingdonshire District Council,24/05/2017,24/05/2017,210357,C-0002520379,"7,149.00",COMPUTERSHARE VOUCHERS LTD,CR412205,Child Care Vouchers - Payroll,Deductions Paid To Third Party,26
http://statistics.data.gov.uk/id/local-authority/12UE,Huntingdonshire District Council,16/05/2017,17/05/2017,209949,65912,"7,287.15",HAVEN POWER LTD,CR455940,Pathfinder House Site,Electricity,420
http://statistics.data.gov.uk/id/local-authority/12UE,Huntingdonshire District Council,04/05/2017,04/05/2017,209217,18329,"6,990.00",VICTOIRE PRESS LTD,CR404724,Elections,Printing (External),220
http://statistics.data.gov.uk/id/local-authority/12UE,Huntingdonshire District Council,03/05/2017,03/05/2017,209033,195389,"6,487.93",CAMBRIDGE CITY COUNCIL,CR017896,Improvement Grants,Home Improvement Agency Fees,724
http://statistics.data.gov.uk/id/local-authority/12UE,Huntingdonshire District Council,09/05/2017,09/05/2017,209449,195602,"6,446.53",CAMBRIDGE CITY COUNCIL,CR017896,Improvement Grants,Home Improvement Agency Fees,724
http://statistics.data.gov.uk/id/local-authority/12UE,Huntingdonshire District Council,31/05/2017,31/05/2017,210677,INVRMAG1001287,"6,422.24",NCC GROUP SECURITY SERVICES LTD,CR424038,Imd Shared Service,Consultants,711
http://statistics.data.gov.uk/id/local-authority/12UE,Huntingdonshire District Council,22/05/2017,22/05/2017,209806,9054378888,"6,388.61",ROYAL MAIL,CR027083,Elections,Postage,231
http://statistics.data.gov.uk/id/local-authority/12UE,Huntingdonshire District Council,11/05/2017,11/05/2017,611681,139289,"6,325.93",HINCHINGBROOKE HEALTH CARE TRUST,CR109773,Human Resources,Medical Fees,734
http://statistics.data.gov.uk/id/local-authority/12UE,Huntingdonshire District Council,31/05/2017,31/05/2017,210674,75346,"6,135.00",VICTOIRE PRESS LTD,CR404724,Elections,Printing (External),220
http://statistics.data.gov.uk/id/local-authority/12UE,Huntingdonshire District Council,16/05/2017,17/05/2017,209060,SI-00021337,"6,009.48",ANYTIME LEISURE LTD T/A ORIGIN FITNESS,CR424720,One Leisure St Ives,Equipment,500
http://statistics.data.gov.uk/id/local-authority/12UE,Huntingdonshire District Council,11/05/2017,11/05/2017,209162,390,"5,920.00",WAYNE BINGHAM,CR405796,Improvement Grants,Mandatory Grants,801
http://statistics.data.gov.uk/id/local-authority/12UE,Huntingdonshire District Council,30/05/2017,30/05/2017,206592,529890,"5,796.50",BSG PROPERTY SERVICES LTD,CR089905,Improvement Grants,Mandatory Grants,801
http://statistics.data.gov.uk/id/local-authority/12UE,Huntingdonshire District Council,24/05/2017,24/05/2017,210319,ACC281,"5,780.00",ARLINGCLOSE,CR478136,Financial Services Mus,Consultants,711
http://statistics.data.gov.uk/id/local-authority/12UE,Huntingdonshire District Council,22/05/2017,22/05/2017,210001,8055720500,"5,708.71",ANGLIAN WATER,CR000071,One Leisure St Ives,Water & Sewerage,432
http://statistics.data.gov.uk/id/local-authority/12UE,Huntingdonshire District Council,09/05/2017,09/05/2017,209064,17005111,"5,695.12",TECHNOGYM UK LTD,CR033037,One Leisure Ramsey,Equipment Maintenance,511
http://statistics.data.gov.uk/id/local-authority/12UE,Huntingdonshire District Council,11/05/2017,11/05/2017,209634,1516,"5,472.00",HD PROPERTY SERVICES,CR422148,Improvement Grants,Mandatory Grants,801
http://statistics.data.gov.uk/id/local-authority/12UE,Huntingdonshire District Council,18/05/2017,18/05/2017,209858,1597,"5,406.00",HD PROPERTY SERVICES,CR422148,Improvement Grants,Mandatory Grants,801
http://statistics.data.gov.uk/id/local-authority/12UE,Huntingdonshire District Council,18/05/2017,18/05/2017,210018,923469-079A,526.08,VIRGIN MEDIA BUSINESS/CPSN,CR455148,Cctv Shared Service,I T Line Rental,248
http://statistics.data.gov.uk/id/local-authority/12UE,Huntingdonshire District Council,18/05/2017,18/05/2017,210018,923469-079A,"4,841.64",VIRGIN MEDIA BUSINESS/CPSN,CR455148,Imd Shared Service,I T Line Rental,248
http://statistics.data.gov.uk/id/local-authority/12UE,Huntingdonshire District Council,18/05/2017,18/05/2017,209813,20118,"5,345.37",M WATSON CONSTRUCTION LTD,CR480595,Improvement Grants,Mandatory Grants,801
http://statistics.data.gov.uk/id/local-authority/12UE,Huntingdonshire District Council,03/05/2017,03/05/2017,207910,62902,"5,242.00",GASWISE,CR423458,Improvement Grants,Mandatory Grants,801
http://statistics.data.gov.uk/id/local-authority/12UE,Huntingdonshire District Council,11/05/2017,11/05/2017,209633,RC-HDC009,"2,895.00",RENT CONNECT,CR424138,Homelessness Management,Bed & Breakfast Payment,818
http://statistics.data.gov.uk/id/local-authority/12UE,Huntingdonshire District Council,11/05/2017,11/05/2017,209633,RC-HDC009,"2,310.00",RENT CONNECT,CR424138,Homelessness Management,Bed & Breakfast Payment,818
http://statistics.data.gov.uk/id/local-authority/12UE,Huntingdonshire District Council,17/05/2017,18/05/2017,209989,10728881,"5,164.28",CAMBRIDGESHIRE COUNTY COUNCIL,CR006678,Trade Refuse,Waste Disposal,763
http://statistics.data.gov.uk/id/local-authority/12UE,Huntingdonshire District Council,16/05/2017,17/05/2017,209950,65914,"5,039.60",HAVEN POWER LTD,CR455940,One Leisure St Neots,Electricity,420
http://statistics.data.gov.uk/id/local-authority/12UE,Huntingdonshire District Council,17/05/2017,18/05/2017,210004,04-000004316,"5,000.00",CUSHMAN & WAKEFIELD,CR424152,Local Development Framework,Consultants,711
http://statistics.data.gov.uk/id/local-authority/12UE,Huntingdonshire District Council,31/05/2017,31/05/2017,210696,SLIN/00044063,"5,000.00",ORCHARD INFORMATION SYSTEMS LTD,CR424755,Scdc Recharge Invoices,Equipment Maintenance,511
http://statistics.data.gov.uk/id/local-authority/12UE,Huntingdonshire District Council,24/05/2017,24/05/2017,210329,INV00091,"4,840.00",SQUIRES & SON LTD,CR478185,Improvement Grants,Mandatory Grants,801
http://statistics.data.gov.uk/id/local-authority/12UE,Huntingdonshire District Council,04/05/2017,04/05/2017,206571,02-000001832,"4,800.00",CUSHMAN & WAKEFIELD,CR424152,Local Development Framework,Consultants,711
http://statistics.data.gov.uk/id/local-authority/12UE,Huntingdonshire District Council,25/05/2017,25/05/2017,209921,IN0598516,"4,792.95",STAFFLINE GROUP,CR416827,Domestic Refuse,Hired Staff,100
http://statistics.data.gov.uk/id/local-authority/12UE,Huntingdonshire District Council,11/05/2017,11/05/2017,209462,392,"4,755.00",WAYNE BINGHAM,CR405796,Improvement Grants,Mandatory Grants,801
http://statistics.data.gov.uk/id/local-authority/12UE,Huntingdonshire District Council,24/05/2017,24/05/2017,210335,530809,"4,739.00",BSG PROPERTY SERVICES LTD,CR089905,Improvement Grants,Mandatory Grants,801
http://statistics.data.gov.uk/id/local-authority/12UE,Huntingdonshire District Council,09/05/2017,11/05/2017,209369,122042,"4,664.48",CALE ACCESS UK LTD,CR401137,Off Street Parking,Equipment,500
http://statistics.data.gov.uk/id/local-authority/12UE,Huntingdonshire District Council,11/05/2017,11/05/2017,209465,REDACTED,"4,635.00",PRODEC,CR139080,Improvement Grants,Mandatory Grants,801
http://statistics.data.gov.uk/id/local-authority/12UE,Huntingdonshire District Council,16/05/2017,17/05/2017,209948,95922,"4,564.31",HAVEN POWER LTD,CR455940,One Leisure St Ives,Electricity,420
http://statistics.data.gov.uk/id/local-authority/12UE,Huntingdonshire District Council,04/05/2017,04/05/2017,209170,WN70312957,"4,500.00",CAPITA RESOURCING LTD,CR030165,Imd Shared Service,Hired Staff,100
http://statistics.data.gov.uk/id/local-authority/12UE,Huntingdonshire District Council,03/05/2017,03/05/2017,207653,INV000086,"4,475.00",SQUIRES & SON LTD,CR478185,Improvement Grants,Mandatory Grants,801
http://statistics.data.gov.uk/id/local-authority/12UE,Huntingdonshire District Council,16/05/2017,17/05/2017,209951,65924,"4,337.17",HAVEN POWER LTD,CR455940,E F H And Depots,Electricity,420
http://statistics.data.gov.uk/id/local-authority/12UE,Huntingdonshire District Council,18/05/2017,18/05/2017,209942,1149100,"4,325.00",FELGAINS CARE & MOBILITY,CR411475,Improvement Grants,Mandatory Grants,801
http://statistics.data.gov.uk/id/local-authority/12UE,Huntingdonshire District Council,04/05/2017,04/05/2017,209118,9982391,"4,244.10",SNR DENTON,CR453969,Dc Application Processing,Costs Recovered,A04
http://statistics.data.gov.uk/id/local-authority/12UE,Huntingdonshire District Council,04/05/2017,04/05/2017,209185,124817,"4,200.00",IT TALENT SOLUTIONS LTD,CR482676,Imd Shared Service,Hired Staff,100
http://statistics.data.gov.uk/id/local-authority/12UE,Huntingdonshire District Council,11/05/2017,11/05/2017,209663,LTHR41,"4,200.00",WILLOW HR LIMITED,CR422016,Human Resources,Consultants,711
http://statistics.data.gov.uk/id/local-authority/12UE,Huntingdonshire District Council,17/05/2017,18/05/2017,209956,SIN015045,"4,200.00",THE WILDLIFE TRUST BEDS CAMBS & NORTHANTS,CR401987,Project Contributions,Contribution (Paid Out),810
http://statistics.data.gov.uk/id/local-authority/12UE,Huntingdonshire District Council,03/05/2017,03/05/2017,209142,99849,"4,163.17",FIRST TUNNELS LTD,CR477382,Countryside,Materials,550
http://statistics.data.gov.uk/id/local-authority/12UE,Huntingdonshire District Council,09/05/2017,09/05/2017,209067,17005115,"4,145.37",TECHNOGYM UK LTD,CR033037,One Leisure Sawtry,Equipment Maintenance,511
http://statistics.data.gov.uk/id/local-authority/12UE,Huntingdonshire District Council,25/05/2017,25/05/2017,209576,IN0596138,"4,091.96",STAFFLINE GROUP,CR416827,Domestic Refuse,Hired Staff,100
http://statistics.data.gov.uk/id/local-authority/12UE,Huntingdonshire District Council,11/05/2017,11/05/2017,208730,IN0592999,"4,055.96",STAFFLINE GROUP,CR416827,Domestic Refuse,Hired Staff,100
http://statistics.data.gov.uk/id/local-authority/12UE,Huntingdonshire District Council,24/05/2017,24/05/2017,612046,22950,"4,054.00",PREMIER SERVICE AND INSTALLATION,CR453810,Improvement Grants,Mandatory Grants,801
http://statistics.data.gov.uk/id/local-authority/12UE,Huntingdonshire District Council,08/05/2017,11/05/2017,209412,15635,"4,024.20",JADE SECURITY SERVICES LTD,CR422256,Off Street Parking,Cash Collection,702
http://statistics.data.gov.uk/id/local-authority/12UE,Huntingdonshire District Council,16/05/2017,17/05/2017,209860,65916,"3,924.13",HAVEN POWER LTD,CR455940,One Leisure Huntingdon,Electricity,420
http://statistics.data.gov.uk/id/local-authority/12UE,Huntingdonshire District Council,25/05/2017,25/05/2017,210411,12052,"3,875.00",IT TALENT SOLUTIONS LTD,CR482676,Imd Shared Service,Hired Staff,100
http://statistics.data.gov.uk/id/local-authority/12UE,Huntingdonshire District Council,18/05/2017,18/05/2017,210024,1007536414,"3,850.00",HAYS,CR423917,Chief Executive & Comt,Consultants,711
http://statistics.data.gov.uk/id/local-authority/12UE,Huntingdonshire District Council,16/05/2017,17/05/2017,209861,65924,"3,774.62",HAVEN POWER LTD,CR455940,E F H And Depots,Electricity,420
http://statistics.data.gov.uk/id/local-authority/12UE,Huntingdonshire District Council,03/05/2017,03/05/2017,209034,195388,"3,761.07",CAMBRIDGE CITY COUNCIL,CR017896,Renovation/Improvement Grants,Contribution (Paid Out),810
http://statistics.data.gov.uk/id/local-authority/12UE,Huntingdonshire District Council,08/05/2017,11/05/2017,209119,2590,"3,660.00",RVS GROUP LTD,CR480777,Domestic Refuse,Vehicle Hire,607
http://statistics.data.gov.uk/id/local-authority/12UE,Huntingdonshire District Council,24/05/2017,24/05/2017,210378,2590,"3,660.00",REFUSE VEHICLE SOLUTIONS LTD,CR424740,Domestic Refuse,Vehicle Hire,607
http://statistics.data.gov.uk/id/local-authority/12UE,Huntingdonshire District Council,11/05/2017,11/05/2017,208729,IN0591398,"3,625.11",STAFFLINE GROUP,CR416827,Domestic Refuse,Hired Staff,100
http://statistics.data.gov.uk/id/local-authority/12UE,Huntingdonshire District Council,18/05/2017,18/05/2017,210025,1007378746,"3,575.00",HAYS,CR423917,Chief Executive & Comt,Hired Staff,100
http://statistics.data.gov.uk/id/local-authority/12UE,Huntingdonshire District Council,22/05/2017,22/05/2017,210253,1007554535,"3,575.00",HAYS,CR423917,Chief Executive & Comt,Hired Staff,100
http://statistics.data.gov.uk/id/local-authority/12UE,Huntingdonshire District Council,25/05/2017,25/05/2017,210447,1007577667,"3,575.00",HAYS,CR423917,Chief Executive & Comt,Hired Staff,100
http://statistics.data.gov.uk/id/local-authority/12UE,Huntingdonshire District Council,16/05/2017,17/05/2017,209965,470,"3,527.73",SCAMP THEATRE LTD,CR424025,One Leisure St Ives,Entertainments Inc Cable Tv,744
http://statistics.data.gov.uk/id/local-authority/12UE,Huntingdonshire District Council,25/05/2017,25/05/2017,210603,1007414879,"3,520.00",HAYS,CR423917,Financial Services Mus,Hired Staff,100
http://statistics.data.gov.uk/id/local-authority/12UE,Huntingdonshire District Council,04/05/2017,04/05/2017,209214,SIN014984,"3,500.00",THE WILDLIFE TRUST BEDS CAMBS & NORTHANTS,CR401987,Project Contributions,Contribution (Paid Out),810
http://statistics.data.gov.uk/id/local-authority/12UE,Huntingdonshire District Council,08/05/2017,11/05/2017,209080,2749,"3,400.00",RVS GROUP LTD,CR480777,Domestic Refuse,Vehicle Hire,607
http://statistics.data.gov.uk/id/local-authority/12UE,Huntingdonshire District Council,24/05/2017,24/05/2017,210384,2749,"3,400.00",REFUSE VEHICLE SOLUTIONS LTD,CR424740,Domestic Refuse,Vehicle Hire,607
http://statistics.data.gov.uk/id/local-authority/12UE,Huntingdonshire District Council,08/05/2017,12/05/2017,209390,IN16PS17002088,"1,274.15",WHISTL UK LTD,CR424061,Council Tax,Postage,231
http://statistics.data.gov.uk/id/local-authority/12UE,Huntingdonshire District Council,08/05/2017,12/05/2017,209390,IN16PS17002088,579.83,WHISTL UK LTD,CR424061,Document Centre,Postage,231
http://statistics.data.gov.uk/id/local-authority/12UE,Huntingdonshire District Council,08/05/2017,12/05/2017,209390,IN16PS17002088,41.87,WHISTL UK LTD,CR424061,Electoral Registration,Postage,231
http://statistics.data.gov.uk/id/local-authority/12UE,Huntingdonshire District Council,08/05/2017,12/05/2017,209390,IN16PS17002088,993.31,WHISTL UK LTD,CR424061,Housing  Benefits Admin,Postage,231
http://statistics.data.gov.uk/id/local-authority/12UE,Huntingdonshire District Council,08/05/2017,12/05/2017,209390,IN16PS17002088,375.32,WHISTL UK LTD,CR424061,Domestic Refuse,Postage,231
http://statistics.data.gov.uk/id/local-authority/12UE,Huntingdonshire District Council,16/05/2017,17/05/2017,209947,65919,"3,226.47",HAVEN POWER LTD,CR455940,One Leisure St Ives,Electricity,420
http://statistics.data.gov.uk/id/local-authority/12UE,Huntingdonshire District Council,31/05/2017,31/05/2017,612204,281,"3,220.00",COACH & HORSES,CR410824,Homelessness Management,Bed & Breakfast Payment,818
http://statistics.data.gov.uk/id/local-authority/12UE,Huntingdonshire District Council,16/05/2017,17/05/2017,209863,65922,"3,172.90",HAVEN POWER LTD,CR455940,One Leisure St Ives,Electricity,420
http://statistics.data.gov.uk/id/local-authority/12UE,Huntingdonshire District Council,04/05/2017,17/05/2017,209163,106113/110085,329.7,GALTEC SOLUTIONS LTD,CR423396,Imd Shared Service,Other I T Hardware,203
http://statistics.data.gov.uk/id/local-authority/12UE,Huntingdonshire District Council,04/05/2017,17/05/2017,209163,106113/110085,"2,829.00",GALTEC SOLUTIONS LTD,CR423396,Imd Shared Service,Other I T Hardware,203
http://statistics.data.gov.uk/id/local-authority/12UE,Huntingdonshire District Council,12/05/2017,12/05/2017,209809,91390976,"3,133.85",NORTHGATEPUBLIC SERVICES UK LTD,CR028925,Housing  Benefits Admin,Government Grants,B50
http://statistics.data.gov.uk/id/local-authority/12UE,Huntingdonshire District Council,25/05/2017,25/05/2017,210422,465224,"3,093.80",STORM TECHNOLOGIES,CR480909,Imd Shared Service,Other I T Hardware,203
http://statistics.data.gov.uk/id/local-authority/12UE,Huntingdonshire District Council,25/05/2017,25/05/2017,209924,IN0598515,"3,077.50",STAFFLINE GROUP,CR416827,Domestic Refuse,Hired Staff,100
http://statistics.data.gov.uk/id/local-authority/12UE,Huntingdonshire District Council,09/05/2017,11/05/2017,209487,122099,"3,008.61",CALE ACCESS UK LTD,CR401137,Off Street Parking,Car Park Machines,522
http://statistics.data.gov.uk/id/local-authority/12UE,Huntingdonshire District Council,16/05/2017,16/05/2017,209906,SIN083706B,"3,000.50",QUADRANT SECURITY GROUP,CR027775,Cctv Shared Service,Equipment Maintenance,511
http://statistics.data.gov.uk/id/local-authority/12UE,Huntingdonshire District Council,30/05/2017,30/05/2017,612188,DFG,"3,000.00",REDACTED,CR424677,Improvement Grants,Mandatory Grants,801
http://statistics.data.gov.uk/id/local-authority/12UE,Huntingdonshire District Council,16/05/2017,17/05/2017,209864,65922,"2,991.85",HAVEN POWER LTD,CR455940,One Leisure St Ives,Electricity,420
http://statistics.data.gov.uk/id/local-authority/12UE,Huntingdonshire District Council,30/05/2017,30/05/2017,612186,148833,"2,985.60",SMIRTHWAITE LTD,CR424774,Improvement Grants,Mandatory Grants,801
http://statistics.data.gov.uk/id/local-authority/12UE,Huntingdonshire District Council,24/05/2017,25/05/2017,612040,280,"1,930.00",COACH & HORSES,CR410824,Homelessness Management,Bed & Breakfast Payment,818
http://statistics.data.gov.uk/id/local-authority/12UE,Huntingdonshire District Council,24/05/2017,25/05/2017,612040,280,"1,055.00",COACH & HORSES,CR410824,Homelessness Management,Bed & Breakfast Payment,818
http://statistics.data.gov.uk/id/local-authority/12UE,Huntingdonshire District Council,17/05/2017,18/05/2017,209887,12489090950,"2,977.28",E-ON ENERGY,CR416430,One Leisure St Ives,Gas,421
http://statistics.data.gov.uk/id/local-authority/12UE,Huntingdonshire District Council,03/05/2017,03/05/2017,611093,277,280,COACH & HORSES,CR410824,Homelessness Management,Bed & Breakfast Payment,818
http://statistics.data.gov.uk/id/local-authority/12UE,Huntingdonshire District Council,03/05/2017,03/05/2017,611093,277,"2,695.00",COACH & HORSES,CR410824,Homelessness Management,Bed & Breakfast Payment,818
http://statistics.data.gov.uk/id/local-authority/12UE,Huntingdonshire District Council,16/05/2017,17/05/2017,209946,65916,"2,962.30",HAVEN POWER LTD,CR455940,One Leisure Huntingdon,Electricity,420
http://statistics.data.gov.uk/id/local-authority/12UE,Huntingdonshire District Council,09/05/2017,09/05/2017,209550,BC00259,675,BARRY CORNELIUS ASSOCIATES,CR422523,Financial Mgt System Replacmnt,Hired Staff,100
http://statistics.data.gov.uk/id/local-authority/12UE,Huntingdonshire District Council,09/05/2017,09/05/2017,209550,BC00259,"2,250.00",BARRY CORNELIUS ASSOCIATES,CR422523,Financial Services Mus,Hired Staff,100
http://statistics.data.gov.uk/id/local-authority/12UE,Huntingdonshire District Council,11/05/2017,11/05/2017,611263,278,"2,905.00",COACH & HORSES,CR410824,Homelessness Management,Bed & Breakfast Payment,818
http://statistics.data.gov.uk/id/local-authority/12UE,Huntingdonshire District Council,11/05/2017,11/05/2017,208732,INO592997,"2,874.13",STAFFLINE GROUP,CR416827,Recycling,Hired Staff,100
http://statistics.data.gov.uk/id/local-authority/12UE,Huntingdonshire District Council,03/05/2017,03/05/2017,209122,1007494138,"2,860.00",HAYS,CR423917,Chief Executive & Comt,Hired Staff,100
http://statistics.data.gov.uk/id/local-authority/12UE,Huntingdonshire District Council,03/05/2017,03/05/2017,209125,1007478900,"2,860.00",HAYS,CR423917,Chief Executive & Comt,Hired Staff,100
http://statistics.data.gov.uk/id/local-authority/12UE,Huntingdonshire District Council,05/05/2017,11/05/2017,209374,5074,"2,860.00",ADAMS AUTOS,CR422066,Licences,Vehicle Inspection,618
http://statistics.data.gov.uk/id/local-authority/12UE,Huntingdonshire District Council,18/05/2017,18/05/2017,210026,1007510339,"2,860.00",HAYS,CR423917,Chief Executive & Comt,Hired Staff,100
http://statistics.data.gov.uk/id/local-authority/12UE,Huntingdonshire District Council,15/05/2017,22/05/2017,209811,IN16PS17002343,38.16,WHISTL UK LTD,CR424061,Electoral Registration,Postage,231
http://statistics.data.gov.uk/id/local-authority/12UE,Huntingdonshire District Council,15/05/2017,22/05/2017,209811,IN16PS17002343,"1,049.26",WHISTL UK LTD,CR424061,One Leisure St Ives,Postage,231
http://statistics.data.gov.uk/id/local-authority/12UE,Huntingdonshire District Council,15/05/2017,22/05/2017,209811,IN16PS17002343,430.52,WHISTL UK LTD,CR424061,Council Tax,Postage,231
http://statistics.data.gov.uk/id/local-authority/12UE,Huntingdonshire District Council,15/05/2017,22/05/2017,209811,IN16PS17002343,"1,009.63",WHISTL UK LTD,CR424061,Document Centre,Postage,231
http://statistics.data.gov.uk/id/local-authority/12UE,Huntingdonshire District Council,15/05/2017,22/05/2017,209811,IN16PS17002343,310.48,WHISTL UK LTD,CR424061,Housing  Benefits Admin,Postage,231
http://statistics.data.gov.uk/id/local-authority/12UE,Huntingdonshire District Council,08/05/2017,11/05/2017,209624,888,"2,800.00",NPC TRAINING,CR424735,Human Resources,Training,130
http://statistics.data.gov.uk/id/local-authority/12UE,Huntingdonshire District Council,18/05/2017,18/05/2017,611688,279,"2,800.00",COACH & HORSES,CR410824,Homelessness Management,Bed & Breakfast Payment,818
http://statistics.data.gov.uk/id/local-authority/12UE,Huntingdonshire District Council,16/05/2017,17/05/2017,209782,17B/046,"2,680.00",FOCUS CONSULTANTS 2010 LLP,CR424641,Leisure Services Capital,Consultants,711
http://statistics.data.gov.uk/id/local-authority/12UE,Huntingdonshire District Council,04/05/2017,04/05/2017,209172,R020895,"2,675.00",PREMIER IT RECRUITMENT LTD,CR454029,Imd Shared Service,Hired Staff,100
http://statistics.data.gov.uk/id/local-authority/12UE,Huntingdonshire District Council,25/05/2017,25/05/2017,210415,R021158,"2,675.00",PREMIER IT RECRUITMENT LTD,CR454029,Imd Shared Service,Hired Staff,100
http://statistics.data.gov.uk/id/local-authority/12UE,Huntingdonshire District Council,25/05/2017,25/05/2017,210416,R021288,"2,675.00",PREMIER IT RECRUITMENT LTD,CR454029,Imd Shared Service,Hired Staff,100
http://statistics.data.gov.uk/id/local-authority/12UE,Huntingdonshire District Council,31/05/2017,31/05/2017,210681,R021025,"2,675.00",PREMIER IT RECRUITMENT LTD,CR454029,Imd Shared Service,Hired Staff,100
http://statistics.data.gov.uk/id/local-authority/12UE,Huntingdonshire District Council,18/05/2017,18/05/2017,209904,394,"2,655.00",WAYNE BINGHAM,CR405796,Improvement Grants,Mandatory Grants,801
http://statistics.data.gov.uk/id/local-authority/12UE,Huntingdonshire District Council,04/05/2017,04/05/2017,209176,124785,"2,625.00",IT TALENT SOLUTIONS LTD,CR482676,Imd Shared Service,Hired Staff,100
http://statistics.data.gov.uk/id/local-authority/12UE,Huntingdonshire District Council,18/05/2017,18/05/2017,210013,124857,"2,625.00",IT TALENT SOLUTIONS LTD,CR482676,Imd Shared Service,Hired Staff,100
http://statistics.data.gov.uk/id/local-authority/12UE,Huntingdonshire District Council,25/05/2017,25/05/2017,210404,125085,"2,625.00",IT TALENT SOLUTIONS LTD,CR482676,Imd Shared Service,Hired Staff,100
http://statistics.data.gov.uk/id/local-authority/12UE,Huntingdonshire District Council,31/05/2017,31/05/2017,210395,651,652.5,RIGHT MARKET LTD,CR423440,One Leisure Huntingdon,Advertising/Promoting Services,255
http://statistics.data.gov.uk/id/local-authority/12UE,Huntingdonshire District Council,31/05/2017,31/05/2017,210395,651,326.25,RIGHT MARKET LTD,CR423440,One Leisure Ramsey,Advertising/Promoting Services,255
http://statistics.data.gov.uk/id/local-authority/12UE,Huntingdonshire District Council,31/05/2017,31/05/2017,210395,651,326.25,RIGHT MARKET LTD,CR423440,One Leisure Sawtry,Advertising/Promoting Services,255
http://statistics.data.gov.uk/id/local-authority/12UE,Huntingdonshire District Council,31/05/2017,31/05/2017,210395,651,652.5,RIGHT MARKET LTD,CR423440,One Leisure St Ives,Advertising/Promoting Services,255
http://statistics.data.gov.uk/id/local-authority/12UE,Huntingdonshire District Council,31/05/2017,31/05/2017,210395,651,652.5,RIGHT MARKET LTD,CR423440,One Leisure St Neots,Advertising/Promoting Services,255
http://statistics.data.gov.uk/id/local-authority/12UE,Huntingdonshire District Council,24/05/2017,24/05/2017,210327,1007556651,"2,600.00",HAYS,CR423917,Property Development And Mgt,Hired Staff,100
http://statistics.data.gov.uk/id/local-authority/12UE,Huntingdonshire District Council,25/05/2017,25/05/2017,210426,1007579289,"2,600.00",HAYS,CR423917,Property Development And Mgt,Hired Staff,100
http://statistics.data.gov.uk/id/local-authority/12UE,Huntingdonshire District Council,11/05/2017,11/05/2017,209457,S085061100,"2,520.00",STANNAH LTD Ref(20HU025),CR000759,Improvement Grants,Mandatory Grants,801
http://statistics.data.gov.uk/id/local-authority/12UE,Huntingdonshire District Council,17/05/2017,18/05/2017,209876,12489088380,"2,431.81",E-ON ENERGY,CR416430,One Leisure St Neots,Gas,421
http://statistics.data.gov.uk/id/local-authority/12UE,Huntingdonshire District Council,09/05/2017,09/05/2017,209547,73380,"2,400.00",MACDONALD & COMPANY FREELANCE LTD,CR424684,Property Development And Mgt,Hired Staff,100
http://statistics.data.gov.uk/id/local-authority/12UE,Huntingdonshire District Council,15/05/2017,22/05/2017,209810,IN16PS17002342,610.58,WHISTL UK LTD,CR424061,Council Tax,Postage,231
http://statistics.data.gov.uk/id/local-authority/12UE,Huntingdonshire District Council,15/05/2017,22/05/2017,209810,IN16PS17002342,"1,035.17",WHISTL UK LTD,CR424061,Document Centre,Postage,231
http://statistics.data.gov.uk/id/local-authority/12UE,Huntingdonshire District Council,15/05/2017,22/05/2017,209810,IN16PS17002342,171.91,WHISTL UK LTD,CR424061,Electoral Registration,Postage,231
http://statistics.data.gov.uk/id/local-authority/12UE,Huntingdonshire District Council,15/05/2017,22/05/2017,209810,IN16PS17002342,581.69,WHISTL UK LTD,CR424061,Housing  Benefits Admin,Postage,231
http://statistics.data.gov.uk/id/local-authority/12UE,Huntingdonshire District Council,25/05/2017,25/05/2017,209580,IN0596136,"2,378.63",STAFFLINE GROUP,CR416827,Recycling,Hired Staff,100
http://statistics.data.gov.uk/id/local-authority/12UE,Huntingdonshire District Council,16/05/2017,16/05/2017,209905,SIN083706A,"2,367.36",QUADRANT SECURITY GROUP,CR027775,Cctv Shared Service,Equipment Maintenance,511
http://statistics.data.gov.uk/id/local-authority/12UE,Huntingdonshire District Council,17/05/2017,18/05/2017,209890,12489088110,"2,350.18",E-ON ENERGY,CR416430,One Leisure Huntingdon,Gas,421
http://statistics.data.gov.uk/id/local-authority/12UE,Huntingdonshire District Council,31/05/2017,31/05/2017,210661,0019/12522,750,EZYTREEV,CR422806,Hdc Recharge Invoices,Software,206
http://statistics.data.gov.uk/id/local-authority/12UE,Huntingdonshire District Council,31/05/2017,31/05/2017,210661,0019/12522,600,EZYTREEV,CR422806,Hdc Recharge Invoices,Software,206
http://statistics.data.gov.uk/id/local-authority/12UE,Huntingdonshire District Council,31/05/2017,31/05/2017,210661,0019/12522,960,EZYTREEV,CR422806,Hdc Recharge Invoices,Software,206
http://statistics.data.gov.uk/id/local-authority/12UE,Huntingdonshire District Council,26/05/2017,26/05/2017,210613,REDACTED,"2,300.00",LUMINUS HOMES,CR401276,Homelessness Management,Incentive Payment,816
http://statistics.data.gov.uk/id/local-authority/12UE,Huntingdonshire District Council,09/05/2017,11/05/2017,209503,5303,"2,288.00",EYNESBURY WAREHOUSING,CR032275,Grounds Maintenance,Removal/Storage,750
http://statistics.data.gov.uk/id/local-authority/12UE,Huntingdonshire District Council,03/05/2017,03/05/2017,209049,INV-5653,562.5,CFB LIMITED,CR480886,One Leisure Huntingdon,Advertising/Promoting Services,255
http://statistics.data.gov.uk/id/local-authority/12UE,Huntingdonshire District Council,03/05/2017,03/05/2017,209049,INV-5653,281.25,CFB LIMITED,CR480886,One Leisure Ramsey,Advertising/Promoting Services,255
http://statistics.data.gov.uk/id/local-authority/12UE,Huntingdonshire District Council,03/05/2017,03/05/2017,209049,INV-5653,281.25,CFB LIMITED,CR480886,One Leisure Sawtry,Advertising/Promoting Services,255
http://statistics.data.gov.uk/id/local-authority/12UE,Huntingdonshire District Council,03/05/2017,03/05/2017,209049,INV-5653,562.5,CFB LIMITED,CR480886,One Leisure St Ives,Advertising/Promoting Services,255
http://statistics.data.gov.uk/id/local-authority/12UE,Huntingdonshire District Council,03/05/2017,03/05/2017,209049,INV-5653,562.5,CFB LIMITED,CR480886,One Leisure St Neots,Advertising/Promoting Services,255
http://statistics.data.gov.uk/id/local-authority/12UE,Huntingdonshire District Council,11/05/2017,11/05/2017,208734,IN0592998,"2,152.59",STAFFLINE GROUP,CR416827,Domestic Refuse,Hired Staff,100
http://statistics.data.gov.uk/id/local-authority/12UE,Huntingdonshire District Council,04/05/2017,04/05/2017,209171,R020802,"2,140.00",PREMIER IT RECRUITMENT LTD,CR454029,Imd Shared Service,Hired Staff,100
http://statistics.data.gov.uk/id/local-authority/12UE,Huntingdonshire District Council,31/05/2017,31/05/2017,210683,R021424,"2,140.00",PREMIER IT RECRUITMENT LTD,CR454029,Imd Shared Service,Hired Staff,100
http://statistics.data.gov.uk/id/local-authority/12UE,Huntingdonshire District Council,25/05/2017,25/05/2017,210403,124926,"2,100.00",IT TALENT SOLUTIONS LTD,CR482676,Imd Shared Service,Hired Staff,100
http://statistics.data.gov.uk/id/local-authority/12UE,Huntingdonshire District Council,31/05/2017,31/05/2017,210654,13716,216,PLAYFORDS LTD,CR479055,Telephone Upgrade,Other I T Hardware,203
http://statistics.data.gov.uk/id/local-authority/12UE,Huntingdonshire District Council,31/05/2017,31/05/2017,210654,13716,40,PLAYFORDS LTD,CR479055,Telephone Upgrade,Other I T Hardware,203
http://statistics.data.gov.uk/id/local-authority/12UE,Huntingdonshire District Council,31/05/2017,31/05/2017,210654,13716,295.2,PLAYFORDS LTD,CR479055,Telephone Upgrade,Other I T Hardware,203
http://statistics.data.gov.uk/id/local-authority/12UE,Huntingdonshire District Council,31/05/2017,31/05/2017,210654,13716,98.88,PLAYFORDS LTD,CR479055,Telephone Upgrade,Other I T Hardware,203
http://statistics.data.gov.uk/id/local-authority/12UE,Huntingdonshire District Council,31/05/2017,31/05/2017,210654,13716,162,PLAYFORDS LTD,CR479055,Telephone Upgrade,Other I T Hardware,203
http://statistics.data.gov.uk/id/local-authority/12UE,Huntingdonshire District Council,31/05/2017,31/05/2017,210654,13716,76.2,PLAYFORDS LTD,CR479055,Telephone Upgrade,Other I T Hardware,203
http://statistics.data.gov.uk/id/local-authority/12UE,Huntingdonshire District Council,31/05/2017,31/05/2017,210654,13716,162.93,PLAYFORDS LTD,CR479055,Telephone Upgrade,Other I T Hardware,203
http://statistics.data.gov.uk/id/local-authority/12UE,Huntingdonshire District Council,31/05/2017,31/05/2017,210654,13716,24.72,PLAYFORDS LTD,CR479055,Telephone Upgrade,Other I T Hardware,203
http://statistics.data.gov.uk/id/local-authority/12UE,Huntingdonshire District Council,31/05/2017,31/05/2017,210654,13716,29.35,PLAYFORDS LTD,CR479055,Telephone Upgrade,Other I T Hardware,203
http://statistics.data.gov.uk/id/local-authority/12UE,Huntingdonshire District Council,31/05/2017,31/05/2017,210654,13716,32.77,PLAYFORDS LTD,CR479055,Telephone Upgrade,Other I T Hardware,203
http://statistics.data.gov.uk/id/local-authority/12UE,Huntingdonshire District Council,31/05/2017,31/05/2017,210654,13716,817.65,PLAYFORDS LTD,CR479055,Telephone Upgrade,Other I T Hardware,203
http://statistics.data.gov.uk/id/local-authority/12UE,Huntingdonshire District Council,31/05/2017,31/05/2017,210654,13716,87.5,PLAYFORDS LTD,CR479055,Telephone Upgrade,Other I T Hardware,203
http://statistics.data.gov.uk/id/local-authority/12UE,Huntingdonshire District Council,31/05/2017,31/05/2017,210654,13716,38.62,PLAYFORDS LTD,CR479055,Telephone Upgrade,Other I T Hardware,203
http://statistics.data.gov.uk/id/local-authority/12UE,Huntingdonshire District Council,16/05/2017,16/05/2017,209909,1007529548,"2,080.00",HAYS,CR423917,Property Development And Mgt,Hired Staff,100
http://statistics.data.gov.uk/id/local-authority/12UE,Huntingdonshire District Council,09/05/2017,11/05/2017,209485,V15044,"2,075.00",CAMLINE CAMBRIDGE LIMITED,CR405367,Off Street Parking,Sitework,359
http://statistics.data.gov.uk/id/local-authority/12UE,Huntingdonshire District Council,17/05/2017,18/05/2017,209990,133510,"2,074.00",NEWGATE (NEWARK) LIMITED,CR480024,E F H And Depots,Sitework,359
http://statistics.data.gov.uk/id/local-authority/12UE,Huntingdonshire District Council,04/05/2017,04/05/2017,209200,7.42878E+14,810.12,VIRGIN MEDIA BUSINESS,CR033120,Imd Shared Service,I T Line Rental,248
http://statistics.data.gov.uk/id/local-authority/12UE,Huntingdonshire District Council,04/05/2017,04/05/2017,209200,7.42878E+14,"1,217.30",VIRGIN MEDIA BUSINESS,CR033120,Imd Shared Service,Telephone &Mobile Phonecharges,240
http://statistics.data.gov.uk/id/local-authority/12UE,Huntingdonshire District Council,04/05/2017,04/05/2017,209116,927,"2,020.63",HACT,CR455657,Concessionary Fares,Contribution (Paid Out),810
http://statistics.data.gov.uk/id/local-authority/12UE,Huntingdonshire District Council,24/05/2017,24/05/2017,210361,S30610,"2,019.60",BSG PROPERTY SERVICES LTD,CR089905,Improvement Grants,Mandatory Grants,801
http://statistics.data.gov.uk/id/local-authority/12UE,Huntingdonshire District Council,25/05/2017,25/05/2017,209922,IN0598514,"2,013.12",STAFFLINE GROUP,CR416827,Recycling,Hired Staff,100
http://statistics.data.gov.uk/id/local-authority/12UE,Huntingdonshire District Council,22/05/2017,22/05/2017,210254,9054420515,"2,013.01",ROYAL MAIL,CR027083,Elections,Postage,231
http://statistics.data.gov.uk/id/local-authority/12UE,Huntingdonshire District Council,25/05/2017,25/05/2017,210423,6635,486.2,ENFORCE TECHNOLOGY,CR424742,Imd Shared Service,Other I T Hardware,203
http://statistics.data.gov.uk/id/local-authority/12UE,Huntingdonshire District Council,25/05/2017,25/05/2017,210423,6635,10,ENFORCE TECHNOLOGY,CR424742,Imd Shared Service,Other I T Hardware,203
http://statistics.data.gov.uk/id/local-authority/12UE,Huntingdonshire District Council,25/05/2017,25/05/2017,210423,6635,195,ENFORCE TECHNOLOGY,CR424742,Imd Shared Service,Other I T Hardware,203
http://statistics.data.gov.uk/id/local-authority/12UE,Huntingdonshire District Council,25/05/2017,25/05/2017,210423,6635,"1,315.20",ENFORCE TECHNOLOGY,CR424742,Imd Shared Service,Other I T Hardware,203
http://statistics.data.gov.uk/id/local-authority/12UE,Huntingdonshire District Council,04/05/2017,04/05/2017,209169,JDAINVHDC280417,"2,000.00",JDA-NET LTD,CR423987,Imd Shared Service,Hired Staff,100
http://statistics.data.gov.uk/id/local-authority/12UE,Huntingdonshire District Council,10/05/2017,10/05/2017,209587,EAS332,"2,000.00",SANDERSON WEATHERALL,CR424749,Parks & Open Spaces,Consultants,711
http://statistics.data.gov.uk/id/local-authority/12UE,Huntingdonshire District Council,11/05/2017,11/05/2017,209672,1010869,"2,000.00",HAYMARKET MEDIA GROUP LTD,CR479500,Planning M U'S,Recruitment Costs,120
http://statistics.data.gov.uk/id/local-authority/12UE,Huntingdonshire District Council,16/05/2017,17/05/2017,209668,JL17/05/183,"1,998.00",J AND L SALES LIMITED,CR423146,Ol Hdon Changing Facilities,Building Mtce,303
http://statistics.data.gov.uk/id/local-authority/12UE,Huntingdonshire District Council,09/05/2017,09/05/2017,209386,GAZZA PRODUCTIO,"1,986.11",GROOVY GAZZA PRODUCTIONS,CR424748,One Leisure St Ives,Entertainments Inc Cable Tv,744
http://statistics.data.gov.uk/id/local-authority/12UE,Huntingdonshire District Council,16/05/2017,17/05/2017,209790,2103175310,"1,217.01",BOOKER CASH AND CARRY,CR027611,One Leisure St Ives,Bar Provisions,558
http://statistics.data.gov.uk/id/local-authority/12UE,Huntingdonshire District Council,16/05/2017,17/05/2017,209790,2103175310,503.21,BOOKER CASH AND CARRY,CR027611,One Leisure St Ives,Catering Materials,559
http://statistics.data.gov.uk/id/local-authority/12UE,Huntingdonshire District Council,16/05/2017,17/05/2017,209790,2103175310,32.41,BOOKER CASH AND CARRY,CR027611,One Leisure St Ives,Confectionery,572
http://statistics.data.gov.uk/id/local-authority/12UE,Huntingdonshire District Council,16/05/2017,17/05/2017,209790,2103175310,209.84,BOOKER CASH AND CARRY,CR027611,One Leisure St Ives,Materials,550
http://statistics.data.gov.uk/id/local-authority/12UE,Huntingdonshire District Council,31/05/2017,31/05/2017,210679,NDC280417_3,"1,950.00",ICT PROJECTS LTD,CR423374,Imd Shared Service,Hired Staff,100
http://statistics.data.gov.uk/id/local-authority/12UE,Huntingdonshire District Council,31/05/2017,31/05/2017,210388,966,"1,947.00",MIRAMAR ENGINEERING LTD,CR424694,Leisure Centres Capital,Building Mtce,303
http://statistics.data.gov.uk/id/local-authority/12UE,Huntingdonshire District Council,18/05/2017,18/05/2017,210028,1257256716,50,ORANGE AIRTIME,CR455799,Cctv Shared Service,Telephone &Mobile Phonecharges,240
http://statistics.data.gov.uk/id/local-authority/12UE,Huntingdonshire District Council,18/05/2017,18/05/2017,210028,1257256716,198.27,ORANGE AIRTIME,CR455799,Imd Shared Service,Telephone &Mobile Phonecharges,240
http://statistics.data.gov.uk/id/local-authority/12UE,Huntingdonshire District Council,18/05/2017,18/05/2017,210028,1257256716,8,ORANGE AIRTIME,CR455799,Central Services M Us,Telephone &Mobile Phonecharges,240
http://statistics.data.gov.uk/id/local-authority/12UE,Huntingdonshire District Council,18/05/2017,18/05/2017,210028,1257256716,82.08,ORANGE AIRTIME,CR455799,Environmental Management,Telephone &Mobile Phonecharges,240
http://statistics.data.gov.uk/id/local-authority/12UE,Huntingdonshire District Council,18/05/2017,18/05/2017,210028,1257256716,"1,564.44",ORANGE AIRTIME,CR455799,Hdc Recharge Invoices,Telephone &Mobile Phonecharges,240
http://statistics.data.gov.uk/id/local-authority/12UE,Huntingdonshire District Council,03/05/2017,03/05/2017,611100,3401391,"1,880.00",HM COURTS & TRIBUNALS SERVICE,CR413466,N N D R Administration,Legal Fees,729
http://statistics.data.gov.uk/id/local-authority/12UE,Huntingdonshire District Council,31/05/2017,31/05/2017,612196,,"1,880.00",HMCTS,CR030090,N N D R Administration,Legal Fees,729
http://statistics.data.gov.uk/id/local-authority/12UE,Huntingdonshire District Council,25/05/2017,25/05/2017,209577,IN0596137,"1,838.38",STAFFLINE GROUP,CR416827,Domestic Refuse,Hired Staff,100
http://statistics.data.gov.uk/id/local-authority/12UE,Huntingdonshire District Council,18/05/2017,18/05/2017,210019,7.42878E+14,996.49,VIRGIN MEDIA BUSINESS,CR033120,Imd Shared Service,I T Line Rental,248
http://statistics.data.gov.uk/id/local-authority/12UE,Huntingdonshire District Council,18/05/2017,18/05/2017,210019,7.42878E+14,810.12,VIRGIN MEDIA BUSINESS,CR033120,Imd Shared Service,Telephone &Mobile Phonecharges,240
http://statistics.data.gov.uk/id/local-authority/12UE,Huntingdonshire District Council,18/05/2017,18/05/2017,210017,124909,"1,800.00",IT TALENT SOLUTIONS LTD,CR482676,Imd Shared Service,Hired Staff,100
http://statistics.data.gov.uk/id/local-authority/12UE,Huntingdonshire District Council,24/05/2017,24/05/2017,210281,2133A,"1,800.00",LUCAS MANAGEMENT,CR422009,One Leisure St Ives,Entertainments Inc Cable Tv,744
http://statistics.data.gov.uk/id/local-authority/12UE,Huntingdonshire District Council,25/05/2017,25/05/2017,210409,125086,"1,800.00",IT TALENT SOLUTIONS LTD,CR482676,Imd Shared Service,Hired Staff,100
http://statistics.data.gov.uk/id/local-authority/12UE,Huntingdonshire District Council,03/05/2017,03/05/2017,209139,50094135,"1,798.00",HAYMARKET BUSINESS PUBLICATIONS LTD,CR417029,Planning M U'S,Corporate Subscriptions,754
http://statistics.data.gov.uk/id/local-authority/12UE,Huntingdonshire District Council,15/05/2017,22/05/2017,209821,IN16PS17002464,354.57,WHISTL UK LTD,CR424061,Council Tax,Postage,231
http://statistics.data.gov.uk/id/local-authority/12UE,Huntingdonshire District Council,15/05/2017,22/05/2017,209821,IN16PS17002464,"1,223.76",WHISTL UK LTD,CR424061,Document Centre,Postage,231
http://statistics.data.gov.uk/id/local-authority/12UE,Huntingdonshire District Council,15/05/2017,22/05/2017,209821,IN16PS17002464,177.1,WHISTL UK LTD,CR424061,Electoral Registration,Postage,231
http://statistics.data.gov.uk/id/local-authority/12UE,Huntingdonshire District Council,23/05/2017,23/05/2017,210266,81,"1,750.00",BODSEY ECOLOGY LTD,CR424093,Local Development Framework,Consultants,711
http://statistics.data.gov.uk/id/local-authority/12UE,Huntingdonshire District Council,25/05/2017,25/05/2017,210437,55859893,300,ARCHANT COMMUNITY MEDIA LTD,CR452143,Grounds Maintenance,Advertising/Promoting Services,255
http://statistics.data.gov.uk/id/local-authority/12UE,Huntingdonshire District Council,25/05/2017,25/05/2017,210437,55859893,190,ARCHANT COMMUNITY MEDIA LTD,CR452143,Domestic Refuse,Advertising/Promoting Services,255
http://statistics.data.gov.uk/id/local-authority/12UE,Huntingdonshire District Council,25/05/2017,25/05/2017,210437,55859893,600,ARCHANT COMMUNITY MEDIA LTD,CR452143,Street Cleaning,Advertising/Promoting Services,255
http://statistics.data.gov.uk/id/local-authority/12UE,Huntingdonshire District Council,25/05/2017,25/05/2017,210437,55859893,657.67,ARCHANT COMMUNITY MEDIA LTD,CR452143,Street Cleaning,Advertising/Promoting Services,255
http://statistics.data.gov.uk/id/local-authority/12UE,Huntingdonshire District Council,03/05/2017,03/05/2017,209124,11443DC,434.94,ASP,CR455201,One Leisure Ramsey,Building Mtce,303
http://statistics.data.gov.uk/id/local-authority/12UE,Huntingdonshire District Council,03/05/2017,03/05/2017,209124,11443DC,434.94,ASP,CR455201,One Leisure Sawtry,Building Mtce,303
http://statistics.data.gov.uk/id/local-authority/12UE,Huntingdonshire District Council,03/05/2017,03/05/2017,209124,11443DC,434.93,ASP,CR455201,One Leisure St Ives,Building Mtce,303
http://statistics.data.gov.uk/id/local-authority/12UE,Huntingdonshire District Council,03/05/2017,03/05/2017,209124,11443DC,434.94,ASP,CR455201,One Leisure St Neots,Building Mtce,303
http://statistics.data.gov.uk/id/local-authority/12UE,Huntingdonshire District Council,08/05/2017,08/05/2017,209400,1007516081,"1,731.15",HAYS,CR423917,Property Development And Mgt,Hired Staff,100
http://statistics.data.gov.uk/id/local-authority/12UE,Huntingdonshire District Council,03/05/2017,03/05/2017,209135,HDC053,"1,724.35",C G UTILITIES,CR119758,Environmental Management,Electricity,420
http://statistics.data.gov.uk/id/local-authority/12UE,Huntingdonshire District Council,04/05/2017,04/05/2017,209195,HSMLI1700068,"1,724.19",HORNBILL SERVICE MANAGEMENT LIMITED,CR423491,Imd Shared Service,Software,206
http://statistics.data.gov.uk/id/local-authority/12UE,Huntingdonshire District Council,03/05/2017,03/05/2017,209158,595,"1,710.00",B P MORSE,CR030128,Improvement Grants,Mandatory Grants,801
http://statistics.data.gov.uk/id/local-authority/12UE,Huntingdonshire District Council,16/05/2017,17/05/2017,209610,17501056,"1,710.00",ENER G NATURAL POWER LTD,CR132649,One Leisure St Ives,Building Mtce,303
http://statistics.data.gov.uk/id/local-authority/12UE,Huntingdonshire District Council,04/05/2017,04/05/2017,209190,LA429810,"1,704.50",L A INTERNATIONAL COMPUTER CONSULTANTS LTD,CR424731,Imd Shared Service,Hired Staff,100
http://statistics.data.gov.uk/id/local-authority/12UE,Huntingdonshire District Council,18/05/2017,18/05/2017,210008,LA432679,"1,704.50",L A INTERNATIONAL COMPUTER CONSULTANTS LTD,CR424731,Imd Shared Service,Hired Staff,100
http://statistics.data.gov.uk/id/local-authority/12UE,Huntingdonshire District Council,18/05/2017,18/05/2017,210009,LA435106,"1,704.50",L A INTERNATIONAL COMPUTER CONSULTANTS LTD,CR424731,Imd Shared Service,Hired Staff,100
http://statistics.data.gov.uk/id/local-authority/12UE,Huntingdonshire District Council,31/05/2017,31/05/2017,210686,LA435889,"1,704.50",L A INTERNATIONAL COMPUTER CONSULTANTS LTD,CR424731,Imd Shared Service,Hired Staff,100
http://statistics.data.gov.uk/id/local-authority/12UE,Huntingdonshire District Council,31/05/2017,31/05/2017,210666,PSINV01897643,"1,681.55",CDW,CR423950,Imd Shared Service,Other I T Hardware,203
http://statistics.data.gov.uk/id/local-authority/12UE,Huntingdonshire District Council,04/05/2017,04/05/2017,209184,124788,"1,680.00",IT TALENT SOLUTIONS LTD,CR482676,Imd Shared Service,Hired Staff,100
http://statistics.data.gov.uk/id/local-authority/12UE,Huntingdonshire District Council,11/05/2017,11/05/2017,208733,IN0591397,"1,656.88",STAFFLINE GROUP,CR416827,Domestic Refuse,Hired Staff,100
http://statistics.data.gov.uk/id/local-authority/12UE,Huntingdonshire District Council,31/05/2017,31/05/2017,210657,105402306,436,IBM UNITED KINGDOM LTD,CR482315,Imd Shared Service,Software,206
http://statistics.data.gov.uk/id/local-authority/12UE,Huntingdonshire District Council,31/05/2017,31/05/2017,210657,105402306,"1,176.00",IBM UNITED KINGDOM LTD,CR482315,Imd Shared Service,Software,206
http://statistics.data.gov.uk/id/local-authority/12UE,Huntingdonshire District Council,18/05/2017,18/05/2017,210049,23991,"1,591.63",B. S. GRAVES ELECTRICAL LTD,CR000363,Improvement Grants,Mandatory Grants,801
http://statistics.data.gov.uk/id/local-authority/12UE,Huntingdonshire District Council,19/05/2017,19/05/2017,209873,661225560,"1,566.93",SWALEC,CR407130,Bus Stations,Electricity,420
http://statistics.data.gov.uk/id/local-authority/12UE,Huntingdonshire District Council,12/05/2017,12/05/2017,209452,Q390407,"1,560.00",THE NEWSPAPER LICENCING AGENCY LIMITED,CR478851,Public Accountability,Licences,730
http://statistics.data.gov.uk/id/local-authority/12UE,Huntingdonshire District Council,22/05/2017,22/05/2017,210255,9054411346,"1,117.62",ROYAL MAIL,CR027083,Document Centre,Postage,231
http://statistics.data.gov.uk/id/local-authority/12UE,Huntingdonshire District Council,22/05/2017,22/05/2017,210255,9054411346,55.79,ROYAL MAIL,CR027083,Elections,Postage,231
http://statistics.data.gov.uk/id/local-authority/12UE,Huntingdonshire District Council,22/05/2017,22/05/2017,210255,9054411346,368.65,ROYAL MAIL,CR027083,Electoral Registration,Postage,231
http://statistics.data.gov.uk/id/local-authority/12UE,Huntingdonshire District Council,09/05/2017,09/05/2017,209454,54965,"1,533.25",OFF THE KERB PRODUCTIONS,CR423529,One Leisure St Ives,Entertainments Inc Cable Tv,744
http://statistics.data.gov.uk/id/local-authority/12UE,Huntingdonshire District Council,24/05/2017,24/05/2017,210341,8726552,41.39,PREMIER PAPER GROUP LTD,CR424769,Document Centre,Paper,562
http://statistics.data.gov.uk/id/local-authority/12UE,Huntingdonshire District Council,24/05/2017,24/05/2017,210341,8726552,"1,444.49",PREMIER PAPER GROUP LTD,CR424769,Document Centre,Paper,562
http://statistics.data.gov.uk/id/local-authority/12UE,Huntingdonshire District Council,24/05/2017,24/05/2017,210341,8726552,20.38,PREMIER PAPER GROUP LTD,CR424769,Document Centre,Paper,562
http://statistics.data.gov.uk/id/local-authority/12UE,Huntingdonshire District Council,24/05/2017,24/05/2017,210341,8726552,20.4,PREMIER PAPER GROUP LTD,CR424769,Document Centre,Paper,562
http://statistics.data.gov.uk/id/local-authority/12UE,Huntingdonshire District Council,11/05/2017,11/05/2017,209495,20119,"1,522.95",M WATSON CONSTRUCTION LTD,CR480595,Improvement Grants,Mandatory Grants,801
http://statistics.data.gov.uk/id/local-authority/12UE,Huntingdonshire District Council,16/05/2017,17/05/2017,209674,INV024387,"1,521.50",ESCAPE FITNESS,CR479121,One Leisure St Ives,Building Mtce,303
http://statistics.data.gov.uk/id/local-authority/12UE,Huntingdonshire District Council,24/05/2017,24/05/2017,210328,73939,"1,500.00",MACDONALD & COMPANY FREELANCE LTD,CR424684,Property Development And Mgt,Hired Staff,100
http://statistics.data.gov.uk/id/local-authority/12UE,Huntingdonshire District Council,31/05/2017,31/05/2017,210723,73189,"1,500.00",MACDONALD & COMPANY FREELANCE LTD,CR424684,Property Development And Mgt,Hired Staff,100
http://statistics.data.gov.uk/id/local-authority/12UE,Huntingdonshire District Council,11/05/2017,11/05/2017,611371,25064,"1,500.00",MUIR GROUP HOUSING ASSOCIATION,CR174822,Homelessness Management,Incentive Payment,816
http://statistics.data.gov.uk/id/local-authority/12UE,Huntingdonshire District Council,18/05/2017,18/05/2017,210048,/34-HUNT01-06,"1,495.60",WRIGHT CONSULTING,CR423525,Dc Application Processing,Consultants,711
http://statistics.data.gov.uk/id/local-authority/12UE,Huntingdonshire District Council,04/05/2017,04/05/2017,209181,HDC063,"1,494.00",CFL ESTATE SERVICES,CR455208,Property Development And Mgt,Hired Staff,100
http://statistics.data.gov.uk/id/local-authority/12UE,Huntingdonshire District Council,04/05/2017,04/05/2017,209345,17074,"1,450.00",POS ENTERPRISES,CR413287,Local Development Framework,Corporate Subscriptions,754
http://statistics.data.gov.uk/id/local-authority/12UE,Huntingdonshire District Council,11/05/2017,11/05/2017,209107,10807765,"1,432.50",SHB HIRE LTD,CR416566,Domestic Refuse,Vehicle Hire,607
http://statistics.data.gov.uk/id/local-authority/12UE,Huntingdonshire District Council,16/05/2017,17/05/2017,209798,17-Dec,"1,430.00",JBA CONSTRUCTION & MANAGEMENT SERVICES,CR416716,Ol Hdon Changing Facilities,Consultants,711
http://statistics.data.gov.uk/id/local-authority/12UE,Huntingdonshire District Council,31/05/2017,31/05/2017,210607,428123,"1,424.07",HEASELL ELECTROMECHANICAL SERVICES LTD,CR422407,One Leisure Huntingdon,Building Mtce,303
http://statistics.data.gov.uk/id/local-authority/12UE,Huntingdonshire District Council,11/05/2017,11/05/2017,208731,IN0591396,"1,414.92",STAFFLINE GROUP,CR416827,Recycling,Hired Staff,100
http://statistics.data.gov.uk/id/local-authority/12UE,Huntingdonshire District Council,18/05/2017,18/05/2017,209570,IN0596139,"1,411.14",STAFFLINE GROUP,CR416827,Street Cleaning,Hired Staff,100
http://statistics.data.gov.uk/id/local-authority/12UE,Huntingdonshire District Council,25/05/2017,25/05/2017,210408,125105,"1,400.00",IT TALENT SOLUTIONS LTD,CR482676,Imd Shared Service,Hired Staff,100
http://statistics.data.gov.uk/id/local-authority/12UE,Huntingdonshire District Council,03/05/2017,03/05/2017,209123,1007496864,"1,384.92",HAYS,CR423917,Property Development And Mgt,Hired Staff,100
http://statistics.data.gov.uk/id/local-authority/12UE,Huntingdonshire District Council,16/05/2017,17/05/2017,209784,17B/045,"1,375.00",FOCUS CONSULTANTS 2010 LLP,CR424641,Leisure Services Capital,Consultants,711
http://statistics.data.gov.uk/id/local-authority/12UE,Huntingdonshire District Council,04/05/2017,04/05/2017,209191,LA430741,"1,363.60",L A INTERNATIONAL COMPUTER CONSULTANTS LTD,CR424731,Imd Shared Service,Hired Staff,100
http://statistics.data.gov.uk/id/local-authority/12UE,Huntingdonshire District Council,04/05/2017,04/05/2017,209192,LA431542,"1,363.60",L A INTERNATIONAL COMPUTER CONSULTANTS LTD,CR424731,Imd Shared Service,Hired Staff,100
http://statistics.data.gov.uk/id/local-authority/12UE,Huntingdonshire District Council,25/05/2017,25/05/2017,210399,LA433938,"1,363.60",L A INTERNATIONAL COMPUTER CONSULTANTS LTD,CR424731,Imd Shared Service,Hired Staff,100
http://statistics.data.gov.uk/id/local-authority/12UE,Huntingdonshire District Council,16/05/2017,16/05/2017,209908,73637,"1,350.00",MACDONALD & COMPANY FREELANCE LTD,CR424684,Property Development And Mgt,Hired Staff,100
http://statistics.data.gov.uk/id/local-authority/12UE,Huntingdonshire District Council,19/05/2017,22/05/2017,210233,1131027046,"1,320.05",KONICA MINOLTA,CR478866,Document Centre,Equipment Maintenance,511
http://statistics.data.gov.uk/id/local-authority/12UE,Huntingdonshire District Council,23/05/2017,23/05/2017,210285,REDACTED,"1,312.90",SOUTH CAMBS LTD T/A ERMINE ST HOUSING,CR423967,Housing Tenant Debtors,Cash Advance,6
http://statistics.data.gov.uk/id/local-authority/12UE,Huntingdonshire District Council,09/05/2017,12/05/2017,209511,9054328154,"1,306.41",ROYAL MAIL,CR027083,Elections,Postage,231
http://statistics.data.gov.uk/id/local-authority/12UE,Huntingdonshire District Council,31/05/2017,31/05/2017,210611,9502236822,"1,305.00",JOHNSON HEALTH TECH UK LTD,CR423485,One Leisure Ramsey,Equipment,500
http://statistics.data.gov.uk/id/local-authority/12UE,Huntingdonshire District Council,09/05/2017,09/05/2017,209365,660847,"1,270.58",LACONS,CR422174,One Leisure St Ives,Bar Provisions,558
http://statistics.data.gov.uk/id/local-authority/12UE,Huntingdonshire District Council,18/05/2017,18/05/2017,210012,124879,"1,260.00",IT TALENT SOLUTIONS LTD,CR482676,Imd Shared Service,Hired Staff,100
http://statistics.data.gov.uk/id/local-authority/12UE,Huntingdonshire District Council,09/05/2017,09/05/2017,209387,UKA_MEM/60297,200,UKACTIVE,CR003876,One Leisure Huntingdon,Licences,730
http://statistics.data.gov.uk/id/local-authority/12UE,Huntingdonshire District Council,09/05/2017,09/05/2017,209387,UKA_MEM/60297,200,UKACTIVE,CR003876,One Leisure St Neots,Licences,730
http://statistics.data.gov.uk/id/local-authority/12UE,Huntingdonshire District Council,09/05/2017,09/05/2017,209387,UKA_MEM/60297,200,UKACTIVE,CR003876,One Leisure Ramsey,Licences,730
http://statistics.data.gov.uk/id/local-authority/12UE,Huntingdonshire District Council,09/05/2017,09/05/2017,209387,UKA_MEM/60297,255,UKACTIVE,CR003876,One Leisure Corporate Mgt,Licences,730
http://statistics.data.gov.uk/id/local-authority/12UE,Huntingdonshire District Council,09/05/2017,09/05/2017,209387,UKA_MEM/60297,200,UKACTIVE,CR003876,One Leisure Sawtry,Licences,730
http://statistics.data.gov.uk/id/local-authority/12UE,Huntingdonshire District Council,09/05/2017,09/05/2017,209387,UKA_MEM/60297,200,UKACTIVE,CR003876,One Leisure St Ives,Licences,730
http://statistics.data.gov.uk/id/local-authority/12UE,Huntingdonshire District Council,16/05/2017,17/05/2017,209603,9786,"1,232.26",ROGER WILSON ELECTRONICS,CR028041,Leisure Centres Capital,Building Mtce,303
http://statistics.data.gov.uk/id/local-authority/12UE,Huntingdonshire District Council,08/05/2017,08/05/2017,209399,1007510870,"1,220.00",HAYS,CR423917,Property Development And Mgt,Hired Staff,100
http://statistics.data.gov.uk/id/local-authority/12UE,Huntingdonshire District Council,09/05/2017,09/05/2017,209435,2017/1573,"1,218.00",JBA CONSULTING,CR423103,Local Development Framework,Consultants,711
http://statistics.data.gov.uk/id/local-authority/12UE,Huntingdonshire District Council,04/05/2017,04/05/2017,209186,124834,"1,200.00",IT TALENT SOLUTIONS LTD,CR482676,Imd Shared Service,Hired Staff,100
http://statistics.data.gov.uk/id/local-authority/12UE,Huntingdonshire District Council,25/05/2017,25/05/2017,209925,IN0598390,"1,180.52",STAFFLINE GROUP,CR416827,Domestic Refuse,Hired Staff,100
http://statistics.data.gov.uk/id/local-authority/12UE,Huntingdonshire District Council,18/05/2017,18/05/2017,209926,IN0598517,"1,177.73",STAFFLINE GROUP,CR416827,Street Cleaning,Hired Staff,100
http://statistics.data.gov.uk/id/local-authority/12UE,Huntingdonshire District Council,25/05/2017,25/05/2017,210225,11701,"1,170.00",R J WARREN LTD,CR453872,Countryside,Sitework,359
http://statistics.data.gov.uk/id/local-authority/12UE,Huntingdonshire District Council,18/05/2017,18/05/2017,210015,124853,"1,125.00",IT TALENT SOLUTIONS LTD,CR482676,Imd Shared Service,Hired Staff,100
http://statistics.data.gov.uk/id/local-authority/12UE,Huntingdonshire District Council,25/05/2017,25/05/2017,210407,124941,"1,120.00",IT TALENT SOLUTIONS LTD,CR482676,Imd Shared Service,Hired Staff,100
http://statistics.data.gov.uk/id/local-authority/12UE,Huntingdonshire District Council,09/05/2017,11/05/2017,209372,300988,"1,116.22",DENNIS EAGLE LTD,CR000200,Domestic Refuse,Vehicle Parts & Fittings,625
http://statistics.data.gov.uk/id/local-authority/12UE,Huntingdonshire District Council,18/05/2017,18/05/2017,210010,LA432680,"1,110.00",L A INTERNATIONAL COMPUTER CONSULTANTS LTD,CR424731,Imd Shared Service,Hired Staff,100
http://statistics.data.gov.uk/id/local-authority/12UE,Huntingdonshire District Council,18/05/2017,18/05/2017,210011,LA435107,"1,110.00",L A INTERNATIONAL COMPUTER CONSULTANTS LTD,CR424731,Imd Shared Service,Hired Staff,100
http://statistics.data.gov.uk/id/local-authority/12UE,Huntingdonshire District Council,31/05/2017,31/05/2017,210684,LA435890,"1,110.00",L A INTERNATIONAL COMPUTER CONSULTANTS LTD,CR424731,Imd Shared Service,Hired Staff,100
http://statistics.data.gov.uk/id/local-authority/12UE,Huntingdonshire District Council,11/05/2017,11/05/2017,208724,96340555,"1,102.76",TERBERG MATEC UK LTD,CR402183,Domestic Refuse,Vehicle Parts & Fittings,625
http://statistics.data.gov.uk/id/local-authority/12UE,Huntingdonshire District Council,16/05/2017,16/05/2017,209902,15636,55.8,JADE SECURITY SERVICES LTD,CR422256,Countryside,Cash Collection,702
http://statistics.data.gov.uk/id/local-authority/12UE,Huntingdonshire District Council,16/05/2017,16/05/2017,209902,15636,265.05,JADE SECURITY SERVICES LTD,CR422256,Financial Services,Cash Collection,702
http://statistics.data.gov.uk/id/local-authority/12UE,Huntingdonshire District Council,16/05/2017,16/05/2017,209902,15636,223.2,JADE SECURITY SERVICES LTD,CR422256,One Leisure Huntingdon,Cash Collection,702
http://statistics.data.gov.uk/id/local-authority/12UE,Huntingdonshire District Council,16/05/2017,16/05/2017,209902,15636,55.8,JADE SECURITY SERVICES LTD,CR422256,One Leisure Ramsey,Cash Collection,702
http://statistics.data.gov.uk/id/local-authority/12UE,Huntingdonshire District Council,16/05/2017,16/05/2017,209902,15636,55.8,JADE SECURITY SERVICES LTD,CR422256,One Leisure Sawtry,Cash Collection,702
http://statistics.data.gov.uk/id/local-authority/12UE,Huntingdonshire District Council,16/05/2017,16/05/2017,209902,15636,139.5,JADE SECURITY SERVICES LTD,CR422256,One Leisure St Ives,Cash Collection,702
http://statistics.data.gov.uk/id/local-authority/12UE,Huntingdonshire District Council,16/05/2017,16/05/2017,209902,15636,306.9,JADE SECURITY SERVICES LTD,CR422256,One Leisure St Neots,Cash Collection,702
http://statistics.data.gov.uk/id/local-authority/12UE,Huntingdonshire District Council,17/05/2017,18/05/2017,209424,102687,"1,100.00",RED FORGE LTD,CR405690,Recycling,Vehicle Parts & Fittings,625
http://statistics.data.gov.uk/id/local-authority/12UE,Huntingdonshire District Council,09/05/2017,09/05/2017,209358,I163667,"1,096.04",OAKHAM ALES,CR422253,One Leisure St Ives,Bar Provisions,558
http://statistics.data.gov.uk/id/local-authority/12UE,Huntingdonshire District Council,17/05/2017,18/05/2017,209885,12489090790,"1,067.82",E-ON ENERGY,CR416430,One Leisure Ramsey,Gas,421
http://statistics.data.gov.uk/id/local-authority/12UE,Huntingdonshire District Council,04/05/2017,04/05/2017,209175,R020841,"1,050.00",PREMIER IT RECRUITMENT LTD,CR454029,Imd Shared Service,Hired Staff,100
http://statistics.data.gov.uk/id/local-authority/12UE,Huntingdonshire District Council,24/05/2017,25/05/2017,210312,May-16,"1,050.00",THE STATION HOTEL,CR453752,Homelessness Management,Bed & Breakfast Payment,818
http://statistics.data.gov.uk/id/local-authority/12UE,Huntingdonshire District Council,24/05/2017,24/05/2017,209785,6957,"1,040.50",THE POOL & SPA SPECIALISTS LTD,CR424623,Leisure Centres Capital,Building Mtce,303
http://statistics.data.gov.uk/id/local-authority/12UE,Huntingdonshire District Council,09/05/2017,09/05/2017,209536,2103417370,886.29,BOOKER CASH AND CARRY,CR027611,One Leisure St Ives,Bar Provisions,558
http://statistics.data.gov.uk/id/local-authority/12UE,Huntingdonshire District Council,09/05/2017,09/05/2017,209536,2103417370,77.27,BOOKER CASH AND CARRY,CR027611,One Leisure St Ives,Catering Materials,559
http://statistics.data.gov.uk/id/local-authority/12UE,Huntingdonshire District Council,09/05/2017,09/05/2017,209536,2103417370,11.99,BOOKER CASH AND CARRY,CR027611,One Leisure St Ives,Cleaning Materials,443
http://statistics.data.gov.uk/id/local-authority/12UE,Huntingdonshire District Council,09/05/2017,09/05/2017,209536,2103417370,59.98,BOOKER CASH AND CARRY,CR027611,One Leisure St Ives,Materials,550
http://statistics.data.gov.uk/id/local-authority/12UE,Huntingdonshire District Council,18/05/2017,18/05/2017,209555,22054,"1,025.00",TIPMASTER LTD,CR003118,Grounds Maintenance,Vehicle Parts & Fittings,625
http://statistics.data.gov.uk/id/local-authority/12UE,Huntingdonshire District Council,17/05/2017,18/05/2017,209987,58824,"1,018.31",BEEBYS LIMITED,CR415822,Bus Stations,Building Cleaning,440
http://statistics.data.gov.uk/id/local-authority/12UE,Huntingdonshire District Council,04/05/2017,04/05/2017,209182,HDC064,"1,008.00",CFL ESTATE SERVICES,CR455208,Property Development And Mgt,Hired Staff,100
http://statistics.data.gov.uk/id/local-authority/12UE,Huntingdonshire District Council,24/05/2017,25/05/2017,210358,82717054,"1,000.60",ARCHANT COMMUNITY MEDIA LTD,CR452143,Planning M U'S,Recruitment Costs,120
http://statistics.data.gov.uk/id/local-authority/12UE,Huntingdonshire District Council,18/05/2017,18/05/2017,210030,REDACTED,"1,000.00",LUMINUS HOMES,CR401276,Homelessness Management,Incentive Payment,816
http://statistics.data.gov.uk/id/local-authority/12UE,Huntingdonshire District Council,02/05/2017,02/05/2017,611094,4015070,"1,000.00",TAMESIDE METROPOLITAN BOROUGH COUNCIL,CR401786,Revenue Services Mus,Corporate Subscriptions,754
http://statistics.data.gov.uk/id/local-authority/12UE,Huntingdonshire District Council,31/05/2017,31/05/2017,612205,S1INVP/00005689,993.87,AXIOM HOUSING ASSOCIATION,CR135177,Homelessness Management,Incentive Payment,816
http://statistics.data.gov.uk/id/local-authority/12UE,Huntingdonshire District Council,24/05/2017,24/05/2017,209972,MFM2101,990,MY FRIEND DIRECTORIES,CR482680,One Leisure St Ives,Advertising/Promoting Services,255
http://statistics.data.gov.uk/id/local-authority/12UE,Huntingdonshire District Council,17/05/2017,18/05/2017,209889,13313569100,989.02,E-ON ENERGY,CR416430,Pathfinder House Site,Gas,421
http://statistics.data.gov.uk/id/local-authority/12UE,Huntingdonshire District Council,09/05/2017,11/05/2017,209496,INV000005931,979.9,EGBERT H TAYLOR AND CO LTD,CR004818,Domestic Refuse,Equipment,500
http://statistics.data.gov.uk/id/local-authority/12UE,Huntingdonshire District Council,17/05/2017,18/05/2017,209880,12489088700,973.22,E-ON ENERGY,CR416430,One Leisure Sawtry,Gas,421
http://statistics.data.gov.uk/id/local-authority/12UE,Huntingdonshire District Council,17/05/2017,18/05/2017,209980,3868,950,RICHARD HERRMANN ASSOC LTD,CR403316,Countryside,Hired Staff,100
http://statistics.data.gov.uk/id/local-authority/12UE,Huntingdonshire District Council,17/05/2017,18/05/2017,209413,16499,208.5,POWERAM HYDRAULICS,CR127309,Countryside,Vehicle Parts & Fittings,625
http://statistics.data.gov.uk/id/local-authority/12UE,Huntingdonshire District Council,17/05/2017,18/05/2017,209413,16499,739.7,POWERAM HYDRAULICS,CR127309,Domestic Refuse,Vehicle Parts & Fittings,625
http://statistics.data.gov.uk/id/local-authority/12UE,Huntingdonshire District Council,11/05/2017,11/05/2017,209111,10807769,945,SHB HIRE LTD,CR416566,Street Cleaning,Vehicle Hire,607
http://statistics.data.gov.uk/id/local-authority/12UE,Huntingdonshire District Council,18/05/2017,18/05/2017,209937,391,945,WAYNE BINGHAM,CR405796,Improvement Grants,Mandatory Grants,801
http://statistics.data.gov.uk/id/local-authority/12UE,Huntingdonshire District Council,24/05/2017,25/05/2017,210330,BID SETTLEMENT,925.5,BID HUNTINGDON,CR415389,General Creditors,Payment Of Amount Due,3
http://statistics.data.gov.uk/id/local-authority/12UE,Huntingdonshire District Council,11/05/2017,11/05/2017,611370,78,925,DAVID OLIVER,CR403783,Countryside,Sitework,359
http://statistics.data.gov.uk/id/local-authority/12UE,Huntingdonshire District Council,16/05/2017,16/05/2017,209912,1007536948,915,HAYS,CR423917,Property Development And Mgt,Hired Staff,100
http://statistics.data.gov.uk/id/local-authority/12UE,Huntingdonshire District Council,24/05/2017,24/05/2017,210323,1007553181,915,HAYS,CR423917,Property Development And Mgt,Hired Staff,100
http://statistics.data.gov.uk/id/local-authority/12UE,Huntingdonshire District Council,24/05/2017,24/05/2017,210309,17,904,RICHARD SISTROM PAINTING & DECORATING,CR422887,One Leisure St Ives,Building Mtce,303
http://statistics.data.gov.uk/id/local-authority/12UE,Huntingdonshire District Council,03/05/2017,03/05/2017,209120,73505,900,MACDONALD & COMPANY FREELANCE LTD,CR424684,Property Development And Mgt,Hired Staff,100
http://statistics.data.gov.uk/id/local-authority/12UE,Huntingdonshire District Council,04/05/2017,04/05/2017,209177,124782,900,IT TALENT SOLUTIONS LTD,CR482676,Imd Shared Service,Hired Staff,100
http://statistics.data.gov.uk/id/local-authority/12UE,Huntingdonshire District Council,16/05/2017,16/05/2017,209907,73785,900,MACDONALD & COMPANY FREELANCE LTD,CR424684,Property Development And Mgt,Hired Staff,100
http://statistics.data.gov.uk/id/local-authority/12UE,Huntingdonshire District Council,25/05/2017,25/05/2017,210410,124970,900,IT TALENT SOLUTIONS LTD,CR482676,Imd Shared Service,Hired Staff,100
http://statistics.data.gov.uk/id/local-authority/12UE,Huntingdonshire District Council,31/05/2017,31/05/2017,210694,M/KE042557,900,CIVICA UK LTD,CR415826,Scdc Recharge Invoices,Software,206
http://statistics.data.gov.uk/id/local-authority/12UE,Huntingdonshire District Council,24/05/2017,24/05/2017,210242,NOR11637R,896.85,NORFOLK CANOES,CR422789,One Leisure St Neots,Equipment,500
http://statistics.data.gov.uk/id/local-authority/12UE,Huntingdonshire District Council,04/05/2017,04/05/2017,209187,LA429811,888,L A INTERNATIONAL COMPUTER CONSULTANTS LTD,CR424731,Imd Shared Service,Hired Staff,100
http://statistics.data.gov.uk/id/local-authority/12UE,Huntingdonshire District Council,04/05/2017,04/05/2017,209188,LA430740,888,L A INTERNATIONAL COMPUTER CONSULTANTS LTD,CR424731,Imd Shared Service,Hired Staff,100
http://statistics.data.gov.uk/id/local-authority/12UE,Huntingdonshire District Council,04/05/2017,04/05/2017,209189,LA431541,888,L A INTERNATIONAL COMPUTER CONSULTANTS LTD,CR424731,Imd Shared Service,Hired Staff,100
http://statistics.data.gov.uk/id/local-authority/12UE,Huntingdonshire District Council,25/05/2017,25/05/2017,210400,LA433939,888,L A INTERNATIONAL COMPUTER CONSULTANTS LTD,CR424731,Imd Shared Service,Hired Staff,100
http://statistics.data.gov.uk/id/local-authority/12UE,Huntingdonshire District Council,15/05/2017,15/05/2017,209826,975898,876.53,MORGAN HUNT PUBLIC UK LTD,CR415693,Housing  Benefits Admin,Hired Staff,100
http://statistics.data.gov.uk/id/local-authority/12UE,Huntingdonshire District Council,18/05/2017,18/05/2017,210057,978676,876.53,MORGAN HUNT PUBLIC UK LTD,CR415693,Housing  Benefits Admin,Hired Staff,100
http://statistics.data.gov.uk/id/local-authority/12UE,Huntingdonshire District Council,24/05/2017,24/05/2017,210393,980041,876.53,MORGAN HUNT PUBLIC UK LTD,CR415693,Housing  Benefits Admin,Hired Staff,100
http://statistics.data.gov.uk/id/local-authority/12UE,Huntingdonshire District Council,31/05/2017,31/05/2017,210724,981449,876.53,MORGAN HUNT PUBLIC UK LTD,CR415693,Housing  Benefits Admin,Hired Staff,100
http://statistics.data.gov.uk/id/local-authority/12UE,Huntingdonshire District Council,31/05/2017,31/05/2017,210727,113,870,ROGER HYDE LIMITED,CR409426,Leisure Centres Capital,Building Mtce,303
http://statistics.data.gov.uk/id/local-authority/12UE,Huntingdonshire District Council,24/05/2017,24/05/2017,210320,1007556704,868.85,HAYS,CR423917,Property Development And Mgt,Hired Staff,100
http://statistics.data.gov.uk/id/local-authority/12UE,Huntingdonshire District Council,24/05/2017,24/05/2017,210321,1007556647,868.85,HAYS,CR423917,Property Development And Mgt,Hired Staff,100
http://statistics.data.gov.uk/id/local-authority/12UE,Huntingdonshire District Council,24/05/2017,24/05/2017,210325,1007556650,868.85,HAYS,CR423917,Property Development And Mgt,Hired Staff,100
http://statistics.data.gov.uk/id/local-authority/12UE,Huntingdonshire District Council,18/05/2017,18/05/2017,210031,3287537,867.1,VENN GROUP RECRUITMENT,CR415403,Housing Management Units,Hired Staff,100
http://statistics.data.gov.uk/id/local-authority/12UE,Huntingdonshire District Council,03/05/2017,03/05/2017,209087,38SI 3845691,862.02,BRENNTAG UK LTD,CR015017,One Leisure Huntingdon,Chemicals,551
http://statistics.data.gov.uk/id/local-authority/12UE,Huntingdonshire District Council,31/05/2017,31/05/2017,612207,S1INVP/00005777,857.9,AXIOM HOUSING ASSOCIATION,CR135177,Homelessness Management,Incentive Payment,816
http://statistics.data.gov.uk/id/local-authority/12UE,Huntingdonshire District Council,25/05/2017,25/05/2017,209875,96341481,853.98,TERBERG MATEC UK LTD,CR402183,Domestic Refuse,Vehicle Maintenance External,619
http://statistics.data.gov.uk/id/local-authority/12UE,Huntingdonshire District Council,25/05/2017,25/05/2017,209886,DE11038820,849.26,DENNIS EAGLE LTD,CR000200,Recycling,Vehicle Parts & Fittings,625
http://statistics.data.gov.uk/id/local-authority/12UE,Huntingdonshire District Council,18/05/2017,18/05/2017,210014,124854,825,IT TALENT SOLUTIONS LTD,CR482676,Imd Shared Service,Hired Staff,100
http://statistics.data.gov.uk/id/local-authority/12UE,Huntingdonshire District Council,25/05/2017,25/05/2017,210406,125103,825,IT TALENT SOLUTIONS LTD,CR482676,Imd Shared Service,Hired Staff,100
http://statistics.data.gov.uk/id/local-authority/12UE,Huntingdonshire District Council,15/05/2017,15/05/2017,209825,975899,820.05,MORGAN HUNT PUBLIC UK LTD,CR415693,Housing  Benefits Admin,Hired Staff,100
http://statistics.data.gov.uk/id/local-authority/12UE,Huntingdonshire District Council,18/05/2017,18/05/2017,210016,124860,814,IT TALENT SOLUTIONS LTD,CR482676,Imd Shared Service,Hired Staff,100
http://statistics.data.gov.uk/id/local-authority/12UE,Huntingdonshire District Council,25/05/2017,25/05/2017,210402,125071,814,IT TALENT SOLUTIONS LTD,CR482676,Imd Shared Service,Hired Staff,100
http://statistics.data.gov.uk/id/local-authority/12UE,Huntingdonshire District Council,25/05/2017,25/05/2017,210216,BW11162,810.66,BLACK WOLF LTD,CR160526,Countryside,Materials,550
http://statistics.data.gov.uk/id/local-authority/12UE,Huntingdonshire District Council,16/05/2017,17/05/2017,209916,2103449536,663.68,BOOKER CASH AND CARRY,CR027611,One Leisure St Ives,Bar Provisions,558
http://statistics.data.gov.uk/id/local-authority/12UE,Huntingdonshire District Council,16/05/2017,17/05/2017,209916,2103449536,66.35,BOOKER CASH AND CARRY,CR027611,One Leisure St Ives,Catering Materials,559
http://statistics.data.gov.uk/id/local-authority/12UE,Huntingdonshire District Council,16/05/2017,17/05/2017,209916,2103449536,59.98,BOOKER CASH AND CARRY,CR027611,One Leisure St Ives,Materials,550
http://statistics.data.gov.uk/id/local-authority/12UE,Huntingdonshire District Council,09/05/2017,11/05/2017,209458,457992,789.96,GALA TENT LIMITED,CR424741,Countryside,Equipment,500
http://statistics.data.gov.uk/id/local-authority/12UE,Huntingdonshire District Council,17/05/2017,18/05/2017,209783,6912,680,CAMBRIDGE DOOR SERVICES,CR415341,E F H And Depots,Plant & Equipment Maintenance,380
http://statistics.data.gov.uk/id/local-authority/12UE,Huntingdonshire District Council,17/05/2017,18/05/2017,209783,6912,105,CAMBRIDGE DOOR SERVICES,CR415341,Off Street Parking,Plant & Equipment Maintenance,380
http://statistics.data.gov.uk/id/local-authority/12UE,Huntingdonshire District Council,04/05/2017,04/05/2017,209227,3188,780.85,SCI PRINT LIMITED,CR416581,Elections,Printing (External),220
http://statistics.data.gov.uk/id/local-authority/12UE,Huntingdonshire District Council,16/05/2017,17/05/2017,209605,9781,780.5,ROGER WILSON ELECTRONICS,CR028041,One Leisure St Neots,Building Mtce,303
http://statistics.data.gov.uk/id/local-authority/12UE,Huntingdonshire District Council,25/05/2017,25/05/2017,210347,IN0599983,779.84,STAFFLINE GROUP,CR416827,Street Cleaning,Hired Staff,100
http://statistics.data.gov.uk/id/local-authority/12UE,Huntingdonshire District Council,31/05/2017,31/05/2017,210670,26405,774,NEUFF ATHLETICS EQUIPMENT LTD,CR481133,One Leisure St Ives,Sports Equipment,524
http://statistics.data.gov.uk/id/local-authority/12UE,Huntingdonshire District Council,04/05/2017,17/05/2017,209165,463027,773.45,STORM TECHNOLOGIES,CR480909,Imd Shared Service,Other I T Hardware,203
http://statistics.data.gov.uk/id/local-authority/12UE,Huntingdonshire District Council,04/05/2017,17/05/2017,209166,462588,773.45,STORM TECHNOLOGIES,CR480909,Imd Shared Service,Other I T Hardware,203
http://statistics.data.gov.uk/id/local-authority/12UE,Huntingdonshire District Council,18/05/2017,18/05/2017,210039,464803,773.45,STORM TECHNOLOGIES,CR480909,Imd Shared Service,Other I T Hardware,203
http://statistics.data.gov.uk/id/local-authority/12UE,Huntingdonshire District Council,18/05/2017,18/05/2017,210041,465879,773.45,STORM TECHNOLOGIES,CR480909,Imd Shared Service,Other I T Hardware,203
http://statistics.data.gov.uk/id/local-authority/12UE,Huntingdonshire District Council,25/05/2017,25/05/2017,210421,466841,773.45,STORM TECHNOLOGIES,CR480909,Hdc Recharge Invoices,Other I T Hardware,203
http://statistics.data.gov.uk/id/local-authority/12UE,Huntingdonshire District Council,18/05/2017,18/05/2017,210050,6827,770,FOSTER & SHACKELL LTD,CR422571,Improvement Grants,Mandatory Grants,801
http://statistics.data.gov.uk/id/local-authority/12UE,Huntingdonshire District Council,24/05/2017,25/05/2017,612039,A13,750,THE WILLOWS GUEST HOUSE,CR411007,Homelessness Management,Bed & Breakfast Payment,818
http://statistics.data.gov.uk/id/local-authority/12UE,Huntingdonshire District Council,05/05/2017,11/05/2017,209650,T27195,732,MOGO UK,CR410378,Licences,Licence Plates,564
http://statistics.data.gov.uk/id/local-authority/12UE,Huntingdonshire District Council,05/05/2017,11/05/2017,209650,T27195,14.9,MOGO UK,CR410378,Licences,Licence Plates,564
http://statistics.data.gov.uk/id/local-authority/12UE,Huntingdonshire District Council,11/05/2017,11/05/2017,209083,107565,745,ARTHUR IBBETT LTD,CR000430,Grounds Maintenance,Equipment,500
http://statistics.data.gov.uk/id/local-authority/12UE,Huntingdonshire District Council,31/05/2017,31/05/2017,210601,38SI 3848000,741.26,BRENNTAG UK LTD,CR015017,One Leisure St Ives,Chemicals,551
http://statistics.data.gov.uk/id/local-authority/12UE,Huntingdonshire District Council,04/05/2017,04/05/2017,209174,R020891,740,PREMIER IT RECRUITMENT LTD,CR454029,Imd Shared Service,Hired Staff,100
http://statistics.data.gov.uk/id/local-authority/12UE,Huntingdonshire District Council,25/05/2017,25/05/2017,210414,R021287,740,PREMIER IT RECRUITMENT LTD,CR454029,Imd Shared Service,Hired Staff,100
http://statistics.data.gov.uk/id/local-authority/12UE,Huntingdonshire District Council,09/05/2017,11/05/2017,209371,122049,737.64,CALE ACCESS UK LTD,CR401137,Off Street Parking,Equipment,500
http://statistics.data.gov.uk/id/local-authority/12UE,Huntingdonshire District Council,09/05/2017,11/05/2017,209478,1704/56046,730,GULLIVERS TRUCK HIRE LTD,CR477663,Domestic Refuse,Vehicle Hire,607
http://statistics.data.gov.uk/id/local-authority/12UE,Huntingdonshire District Council,09/05/2017,11/05/2017,209479,1704/56047,730,GULLIVERS TRUCK HIRE LTD,CR477663,Domestic Refuse,Vehicle Hire,607
http://statistics.data.gov.uk/id/local-authority/12UE,Huntingdonshire District Council,09/05/2017,11/05/2017,209481,1704/53679,730,GULLIVERS TRUCK HIRE LTD,CR477663,Domestic Refuse,Vehicle Hire,607
http://statistics.data.gov.uk/id/local-authority/12UE,Huntingdonshire District Council,09/05/2017,11/05/2017,209484,1704/53680,730,GULLIVERS TRUCK HIRE LTD,CR477663,Domestic Refuse,Vehicle Hire,607
http://statistics.data.gov.uk/id/local-authority/12UE,Huntingdonshire District Council,11/05/2017,11/05/2017,209110,10807768,712.5,SHB HIRE LTD,CR416566,Grounds Maintenance,Vehicle Hire,607
http://statistics.data.gov.uk/id/local-authority/12UE,Huntingdonshire District Council,04/05/2017,04/05/2017,209347,4359,541.62,NEWLYN PLC,CR409114,Council Tax,Bailiffs,703
http://statistics.data.gov.uk/id/local-authority/12UE,Huntingdonshire District Council,04/05/2017,04/05/2017,209347,4359,170,NEWLYN PLC,CR409114,Council Tax,Bailiffs,703
http://statistics.data.gov.uk/id/local-authority/12UE,Huntingdonshire District Council,24/05/2017,24/05/2017,210060,759725,708.47,BEN BURGESS & COMPANY,CR453903,One Leisure St Ives,Vehicle Maintenance External,619
http://statistics.data.gov.uk/id/local-authority/12UE,Huntingdonshire District Council,09/05/2017,09/05/2017,209094,224,706.2,INSPIRED SPA SOLUTIONS,CR487218,One Leisure St Ives,Chemicals,551
http://statistics.data.gov.uk/id/local-authority/12UE,Huntingdonshire District Council,18/05/2017,18/05/2017,209553,EI579119,705.31,UNITED ECO SERVICES LTD,CR477773,Fleet Management,Materials,550
http://statistics.data.gov.uk/id/local-authority/12UE,Huntingdonshire District Council,26/05/2017,31/05/2017,209422,892,700,NPC TRAINING,CR424735,Human Resources,Training,130
http://statistics.data.gov.uk/id/local-authority/12UE,Huntingdonshire District Council,24/05/2017,24/05/2017,210324,1007556703,700,HAYS,CR423917,Property Development And Mgt,Hired Staff,100
http://statistics.data.gov.uk/id/local-authority/12UE,Huntingdonshire District Council,31/05/2017,31/05/2017,210755,REDACTED,700,T PAYNE & CO SALES & LETTINGS,CR424778,Housing Tenant Debtors,Cash Advance,6
http://statistics.data.gov.uk/id/local-authority/12UE,Huntingdonshire District Council,16/05/2017,17/05/2017,209061,SI-00021360,698.89,ANYTIME LEISURE LTD T/A ORIGIN FITNESS,CR424720,One Leisure St Ives,Equipment,500
http://statistics.data.gov.uk/id/local-authority/12UE,Huntingdonshire District Council,15/05/2017,15/05/2017,209822,977290,698.86,MORGAN HUNT PUBLIC UK LTD,CR415693,Housing  Benefits Admin,Hired Staff,100
http://statistics.data.gov.uk/id/local-authority/12UE,Huntingdonshire District Council,11/05/2017,11/05/2017,209108,10807766,697.5,SHB HIRE LTD,CR416566,Domestic Refuse,Vehicle Hire,607
http://statistics.data.gov.uk/id/local-authority/12UE,Huntingdonshire District Council,11/05/2017,11/05/2017,209113,10807771,696.5,SHB HIRE LTD,CR416566,Domestic Refuse,Vehicle Hire,607
http://statistics.data.gov.uk/id/local-authority/12UE,Huntingdonshire District Council,24/05/2017,24/05/2017,210322,1007556649,695.08,HAYS,CR423917,Property Development And Mgt,Hired Staff,100
http://statistics.data.gov.uk/id/local-authority/12UE,Huntingdonshire District Council,18/05/2017,25/05/2017,207500,24298,693.04,P & M CUSTOM CLOTHING LTD,CR422681,Nuisances,Protective Clothing & Uniforms,163
http://statistics.data.gov.uk/id/local-authority/12UE,Huntingdonshire District Council,09/05/2017,11/05/2017,209373,DE11034503,690.94,DENNIS EAGLE LTD,CR000200,Domestic Refuse,Vehicle Parts & Fittings,625
http://statistics.data.gov.uk/id/local-authority/12UE,Huntingdonshire District Council,25/05/2017,25/05/2017,209894,155667,687,TECALEMIT GARAGE EQUIPMENT CO LTD,CR477683,Fleet Management,Equipment Maintenance,511
http://statistics.data.gov.uk/id/local-authority/12UE,Huntingdonshire District Council,31/05/2017,31/05/2017,210364,27865,681,STERLING HYDROTECH LTD,CR422914,One Leisure St Neots,Building Mtce,303
http://statistics.data.gov.uk/id/local-authority/12UE,Huntingdonshire District Council,24/05/2017,25/05/2017,210381,REDACTED,680,ALEXANDERS,CR415843,Homelessness Management,Removal/Storage,750
http://statistics.data.gov.uk/id/local-authority/12UE,Huntingdonshire District Council,30/05/2017,30/05/2017,210651,S170043,680,ENERGY MANAGERS ASSOCIATION,CR424775,Human Resources,Training,130
http://statistics.data.gov.uk/id/local-authority/12UE,Huntingdonshire District Council,25/05/2017,25/05/2017,210035,PSI186384,678.59,REESINK TURFCARE UK LTD,CR098282,Grounds Maintenance,Vehicle Parts & Fittings,625
http://statistics.data.gov.uk/id/local-authority/12UE,Huntingdonshire District Council,05/05/2017,11/05/2017,209028,911777351,672.54,PORTAKABIN LTD,CR478566,Miscellaneous Grants,Grants (Paid Out),800
http://statistics.data.gov.uk/id/local-authority/12UE,Huntingdonshire District Council,18/05/2017,18/05/2017,210055,978677,670.13,MORGAN HUNT PUBLIC UK LTD,CR415693,Housing  Benefits Admin,Hired Staff,100
http://statistics.data.gov.uk/id/local-authority/12UE,Huntingdonshire District Council,25/05/2017,25/05/2017,210220,948691,651.62,HIRE OR BUY GROUP LTD,CR000707,Countryside,Equipment,500
http://statistics.data.gov.uk/id/local-authority/12UE,Huntingdonshire District Council,25/05/2017,25/05/2017,210220,948691,16,HIRE OR BUY GROUP LTD,CR000707,Countryside,Materials,550
http://statistics.data.gov.uk/id/local-authority/12UE,Huntingdonshire District Council,24/05/2017,25/05/2017,209104,S10232050,85,KLIPSPRINGER LTD,CR405590,Food Safety,Equipment,500
http://statistics.data.gov.uk/id/local-authority/12UE,Huntingdonshire District Council,24/05/2017,25/05/2017,209104,S10232050,364,KLIPSPRINGER LTD,CR405590,Food Safety,Equipment,500
http://statistics.data.gov.uk/id/local-authority/12UE,Huntingdonshire District Council,24/05/2017,25/05/2017,209104,S10232050,178,KLIPSPRINGER LTD,CR405590,Food Safety,Equipment,500
http://statistics.data.gov.uk/id/local-authority/12UE,Huntingdonshire District Council,24/05/2017,25/05/2017,209104,S10232050,22.5,KLIPSPRINGER LTD,CR405590,Food Safety,Postage,231
http://statistics.data.gov.uk/id/local-authority/12UE,Huntingdonshire District Council,24/05/2017,25/05/2017,209104,S10232050,9,KLIPSPRINGER LTD,CR405590,Food Safety,Postage,231
http://statistics.data.gov.uk/id/local-authority/12UE,Huntingdonshire District Council,08/05/2017,11/05/2017,209629,906076,655.99,KING BROS,CR411339,Countryside,Catering Materials,559
http://statistics.data.gov.uk/id/local-authority/12UE,Huntingdonshire District Council,31/05/2017,31/05/2017,210676,911427624/0006,654.62,SWALEC,CR407130,Industrial Properties,Electricity,420
http://statistics.data.gov.uk/id/local-authority/12UE,Huntingdonshire District Council,24/05/2017,24/05/2017,210318,6828,654,FOSTER & SHACKELL LTD,CR422571,Improvement Grants,Mandatory Grants,801
http://statistics.data.gov.uk/id/local-authority/12UE,Huntingdonshire District Council,31/05/2017,31/05/2017,210729,981450,650.5,MORGAN HUNT PUBLIC UK LTD,CR415693,Housing  Benefits Admin,Hired Staff,100
http://statistics.data.gov.uk/id/local-authority/12UE,Huntingdonshire District Council,15/05/2017,15/05/2017,209824,977291,643.1,MORGAN HUNT PUBLIC UK LTD,CR415693,Housing  Benefits Admin,Hired Staff,100
http://statistics.data.gov.uk/id/local-authority/12UE,Huntingdonshire District Council,11/05/2017,11/05/2017,209109,10807767,642.84,SHB HIRE LTD,CR416566,Grounds Maintenance,Vehicle Hire,607
http://statistics.data.gov.uk/id/local-authority/12UE,Huntingdonshire District Council,11/05/2017,11/05/2017,209112,10807770,642.84,SHB HIRE LTD,CR416566,Grounds Maintenance,Vehicle Hire,607
http://statistics.data.gov.uk/id/local-authority/12UE,Huntingdonshire District Council,09/05/2017,11/05/2017,209494,DE11035487,635.54,DENNIS EAGLE LTD,CR000200,Domestic Refuse,Vehicle Parts & Fittings,625
http://statistics.data.gov.uk/id/local-authority/12UE,Huntingdonshire District Council,31/05/2017,31/05/2017,210653,SINV00109172,633,BIST,CR422733,Scdc Recharge Invoices,Other I T Hardware,203
http://statistics.data.gov.uk/id/local-authority/12UE,Huntingdonshire District Council,04/05/2017,04/05/2017,209225,3199,625,SCI PRINT LIMITED,CR416581,Elections,Printing (External),220
http://statistics.data.gov.uk/id/local-authority/12UE,Huntingdonshire District Council,09/05/2017,11/05/2017,209376,DE11033734,624.68,DENNIS EAGLE LTD,CR000200,Recycling,Vehicle Parts & Fittings,625
http://statistics.data.gov.uk/id/local-authority/12UE,Huntingdonshire District Council,24/05/2017,24/05/2017,209042,2103384646,130.43,BOOKER CASH AND CARRY,CR027611,One Leisure St Ives,Bar Provisions,558
http://statistics.data.gov.uk/id/local-authority/12UE,Huntingdonshire District Council,24/05/2017,24/05/2017,209042,2103384646,221.19,BOOKER CASH AND CARRY,CR027611,One Leisure St Ives,Catering Materials,559
http://statistics.data.gov.uk/id/local-authority/12UE,Huntingdonshire District Council,24/05/2017,24/05/2017,209042,2103384646,99.7,BOOKER CASH AND CARRY,CR027611,One Leisure St Ives,Cleaning Materials,443
http://statistics.data.gov.uk/id/local-authority/12UE,Huntingdonshire District Council,24/05/2017,24/05/2017,209042,2103384646,41.2,BOOKER CASH AND CARRY,CR027611,One Leisure St Ives,Confectionery,572
http://statistics.data.gov.uk/id/local-authority/12UE,Huntingdonshire District Council,24/05/2017,24/05/2017,209042,2103384646,131.44,BOOKER CASH AND CARRY,CR027611,One Leisure St Ives,Materials,550
http://statistics.data.gov.uk/id/local-authority/12UE,Huntingdonshire District Council,30/05/2017,30/05/2017,612187,148834,622.8,SMIRTHWAITE LTD,CR424774,Improvement Grants,Mandatory Grants,801
http://statistics.data.gov.uk/id/local-authority/12UE,Huntingdonshire District Council,24/05/2017,24/05/2017,210394,980042,620,MORGAN HUNT PUBLIC UK LTD,CR415693,Housing  Benefits Admin,Hired Staff,100
http://statistics.data.gov.uk/id/local-authority/12UE,Huntingdonshire District Council,22/05/2017,22/05/2017,210259,6841775,210.3,ANTALIS LTD,CR479468,Document Centre,Paper,562
http://statistics.data.gov.uk/id/local-authority/12UE,Huntingdonshire District Council,22/05/2017,22/05/2017,210259,6841775,288.75,ANTALIS LTD,CR479468,Document Centre,Paper,562
http://statistics.data.gov.uk/id/local-authority/12UE,Huntingdonshire District Council,22/05/2017,22/05/2017,210259,6841775,61.5,ANTALIS LTD,CR479468,Document Centre,Paper,562
http://statistics.data.gov.uk/id/local-authority/12UE,Huntingdonshire District Council,22/05/2017,22/05/2017,210259,6841775,55.13,ANTALIS LTD,CR479468,Document Centre,Paper,562
http://statistics.data.gov.uk/id/local-authority/12UE,Huntingdonshire District Council,11/05/2017,11/05/2017,209084,801225389,614.26,SWALEC,CR407130,E F H And Depots,Electricity,420
http://statistics.data.gov.uk/id/local-authority/12UE,Huntingdonshire District Council,24/05/2017,24/05/2017,210059,759724,604.15,BEN BURGESS & COMPANY,CR453903,One Leisure St Ives,Vehicle Maintenance External,619
http://statistics.data.gov.uk/id/local-authority/12UE,Huntingdonshire District Council,31/05/2017,31/05/2017,210682,R021423,600,PREMIER IT RECRUITMENT LTD,CR454029,Imd Shared Service,Hired Staff,100
http://statistics.data.gov.uk/id/local-authority/12UE,Huntingdonshire District Council,31/05/2017,31/05/2017,210277,21234,598.88,BH DOORS & ENGINEERING LTD,CR455707,One Leisure St Neots,Building Mtce,303
http://statistics.data.gov.uk/id/local-authority/12UE,Huntingdonshire District Council,11/05/2017,11/05/2017,209095,491225588,594.29,SWALEC,CR407130,Off Street Parking,Electricity,420
http://statistics.data.gov.uk/id/local-authority/12UE,Huntingdonshire District Council,04/05/2017,04/05/2017,209173,R020840,590,PREMIER IT RECRUITMENT LTD,CR454029,Imd Shared Service,Hired Staff,100
http://statistics.data.gov.uk/id/local-authority/12UE,Huntingdonshire District Council,25/05/2017,25/05/2017,210412,R021026,590,PREMIER IT RECRUITMENT LTD,CR454029,Imd Shared Service,Hired Staff,100
http://statistics.data.gov.uk/id/local-authority/12UE,Huntingdonshire District Council,25/05/2017,25/05/2017,210413,R021159,590,PREMIER IT RECRUITMENT LTD,CR454029,Imd Shared Service,Hired Staff,100
http://statistics.data.gov.uk/id/local-authority/12UE,Huntingdonshire District Council,31/05/2017,31/05/2017,210664,106541/110433,589.63,GALTEC SOLUTIONS LTD,CR423396,Imd Shared Service,Other I T Hardware,203
http://statistics.data.gov.uk/id/local-authority/12UE,Huntingdonshire District Council,16/05/2017,17/05/2017,209646,90198360,572.21,G4S SECURE SOLUTIONS (UK) LTD,CR454030,One Leisure Ramsey,Fire & Security,450
http://statistics.data.gov.uk/id/local-authority/12UE,Huntingdonshire District Council,04/05/2017,04/05/2017,209178,124810,572,IT TALENT SOLUTIONS LTD,CR482676,Imd Shared Service,Hired Staff,100
http://statistics.data.gov.uk/id/local-authority/12UE,Huntingdonshire District Council,25/05/2017,25/05/2017,210401,124928,572,IT TALENT SOLUTIONS LTD,CR482676,Imd Shared Service,Hired Staff,100
http://statistics.data.gov.uk/id/local-authority/12UE,Huntingdonshire District Council,31/05/2017,31/05/2017,210680,911427624/0008,566.59,SWALEC,CR407130,Industrial Properties,Electricity,420
http://statistics.data.gov.uk/id/local-authority/12UE,Huntingdonshire District Council,24/05/2017,24/05/2017,209491,82711432,154.88,ARCHANT HERTS & CAMBS,CR415764,One Leisure Active Lifestyles,Advertising/Promoting Services,255
http://statistics.data.gov.uk/id/local-authority/12UE,Huntingdonshire District Council,24/05/2017,24/05/2017,209491,82711432,411.21,ARCHANT HERTS & CAMBS,CR415764,One Leisure St Ives,Advertising/Promoting Services,255
http://statistics.data.gov.uk/id/local-authority/12UE,Huntingdonshire District Council,24/05/2017,24/05/2017,210051,885/ONE,112,TERM TIMES,CR423394,One Leisure Huntingdon,Advertising/Promoting Services,255
http://statistics.data.gov.uk/id/local-authority/12UE,Huntingdonshire District Council,24/05/2017,24/05/2017,210051,885/ONE,112,TERM TIMES,CR423394,One Leisure Ramsey,Advertising/Promoting Services,255
http://statistics.data.gov.uk/id/local-authority/12UE,Huntingdonshire District Council,24/05/2017,24/05/2017,210051,885/ONE,112,TERM TIMES,CR423394,One Leisure Sawtry,Advertising/Promoting Services,255
http://statistics.data.gov.uk/id/local-authority/12UE,Huntingdonshire District Council,24/05/2017,24/05/2017,210051,885/ONE,112,TERM TIMES,CR423394,One Leisure St Ives,Advertising/Promoting Services,255
http://statistics.data.gov.uk/id/local-authority/12UE,Huntingdonshire District Council,24/05/2017,24/05/2017,210051,885/ONE,112,TERM TIMES,CR423394,One Leisure St Neots,Advertising/Promoting Services,255
http://statistics.data.gov.uk/id/local-authority/12UE,Huntingdonshire District Council,03/05/2017,03/05/2017,209146,169722,553.6,HUNTINGDON TIMBER SUPPLIES,CR482513,Countryside,Materials,550
http://statistics.data.gov.uk/id/local-authority/12UE,Huntingdonshire District Council,04/05/2017,04/05/2017,209183,124783,550,IT TALENT SOLUTIONS LTD,CR482676,Imd Shared Service,Hired Staff,100
http://statistics.data.gov.uk/id/local-authority/12UE,Huntingdonshire District Council,25/05/2017,25/05/2017,210405,124932,550,IT TALENT SOLUTIONS LTD,CR482676,Imd Shared Service,Hired Staff,100
http://statistics.data.gov.uk/id/local-authority/12UE,Huntingdonshire District Council,31/05/2017,31/05/2017,210047,223764,540.41,DIGITAL ID LIMITED,CR453985,Imd Shared Service,Other I T Hardware,203
http://statistics.data.gov.uk/id/local-authority/12UE,Huntingdonshire District Council,16/05/2017,17/05/2017,209673,215839,540,DIRECT COMMUNICATIONS LTD,CR405782,One Leisure St Ives,Telephone &Mobile Phonecharges,240
http://statistics.data.gov.uk/id/local-authority/12UE,Huntingdonshire District Council,17/05/2017,18/05/2017,209416,61497708,536.5,JOHNSTON ENGINEERING LTD,CR029831,Street Cleaning,Vehicle Parts & Fittings,625
http://statistics.data.gov.uk/id/local-authority/12UE,Huntingdonshire District Council,17/05/2017,18/05/2017,209882,12489088970,532.81,E-ON ENERGY,CR416430,One Leisure Huntingdon,Gas,421
http://statistics.data.gov.uk/id/local-authority/12UE,Huntingdonshire District Council,16/05/2017,16/05/2017,209910,1698539,529,WEIGHTMANS,CR455744,Chief Executive & Comt,Ins (Service Related),260
http://statistics.data.gov.uk/id/local-authority/12UE,Huntingdonshire District Council,09/05/2017,11/05/2017,209486,122129,522.1,CALE ACCESS UK LTD,CR401137,Off Street Parking,Equipment,500
http://statistics.data.gov.uk/id/local-authority/12UE,Huntingdonshire District Council,09/05/2017,09/05/2017,209552,704174,277,CALLCREDIT LTD,CR455548,Council Tax,Enquiries,723
http://statistics.data.gov.uk/id/local-authority/12UE,Huntingdonshire District Council,09/05/2017,09/05/2017,209552,704174,117,CALLCREDIT LTD,CR455548,Housing  Benefits Admin,Enquiries,723
http://statistics.data.gov.uk/id/local-authority/12UE,Huntingdonshire District Council,09/05/2017,09/05/2017,209552,704174,103,CALLCREDIT LTD,CR455548,Financial Services Mus,Enquiries,723
http://statistics.data.gov.uk/id/local-authority/12UE,Huntingdonshire District Council,09/05/2017,09/05/2017,209552,704174,24,CALLCREDIT LTD,CR455548,Housing Management Units,Enquiries,723
http://statistics.data.gov.uk/id/local-authority/12UE,Huntingdonshire District Council,24/05/2017,24/05/2017,210304,82717043,86,ARCHANT HERTS & CAMBS,CR415764,One Leisure Huntingdon,Advertising/Promoting Services,255
http://statistics.data.gov.uk/id/local-authority/12UE,Huntingdonshire District Council,24/05/2017,24/05/2017,210304,82717043,43,ARCHANT HERTS & CAMBS,CR415764,One Leisure Ramsey,Advertising/Promoting Services,255
http://statistics.data.gov.uk/id/local-authority/12UE,Huntingdonshire District Council,24/05/2017,24/05/2017,210304,82717043,43,ARCHANT HERTS & CAMBS,CR415764,One Leisure Sawtry,Advertising/Promoting Services,255
http://statistics.data.gov.uk/id/local-authority/12UE,Huntingdonshire District Council,24/05/2017,24/05/2017,210304,82717043,187.45,ARCHANT HERTS & CAMBS,CR415764,One Leisure St Ives,Advertising/Promoting Services,255
http://statistics.data.gov.uk/id/local-authority/12UE,Huntingdonshire District Council,24/05/2017,24/05/2017,210304,82717043,161,ARCHANT HERTS & CAMBS,CR415764,One Leisure St Neots,Advertising/Promoting Services,255
http://statistics.data.gov.uk/id/local-authority/12UE,Huntingdonshire District Council,31/05/2017,31/05/2017,210609,9789,518.45,ROGER WILSON ELECTRONICS,CR028041,One Leisure St Ives,Building Mtce,303
http://statistics.data.gov.uk/id/local-authority/12UE,Huntingdonshire District Council,11/05/2017,11/05/2017,209046,401508,512.55,SMI GROUP,CR423139,Domestic Refuse,Protective Clothing & Uniforms,163
http://statistics.data.gov.uk/id/local-authority/12UE,Huntingdonshire District Council,31/05/2017,31/05/2017,210714,25803,504.51,THE SOFTBRICK COMPANY LTD,CR480234,Leisure Centres Capital,Building Mtce,303
http://statistics.data.gov.uk/id/local-authority/12UE,Huntingdonshire District Council,17/05/2017,17/05/2017,210006,10136,499,LD EVENTS,CR480610,Property Development And Mgt,Conferences,137
http://statistics.data.gov.uk/id/local-authority/12UE,Huntingdonshire District Council,25/05/2017,25/05/2017,209923,IN0598391,494.63,STAFFLINE GROUP,CR416827,Recycling,Hired Staff,100
http://statistics.data.gov.uk/id/local-authority/12UE,Huntingdonshire District Council,12/05/2017,12/05/2017,209814,6817810,490,ANTALIS LTD,CR479468,Document Centre,Paper,562
http://statistics.data.gov.uk/id/local-authority/12UE,Huntingdonshire District Council,17/05/2017,18/05/2017,209883,12489089510,488.82,E-ON ENERGY,CR416430,One Leisure St Ives,Gas,421
http://statistics.data.gov.uk/id/local-authority/12UE,Huntingdonshire District Council,31/05/2017,31/05/2017,612208,S1INVP/00005778,484.9,AXIOM HOUSING ASSOCIATION,CR135177,Homelessness Management,Incentive Payment,816
http://statistics.data.gov.uk/id/local-authority/12UE,Huntingdonshire District Council,12/05/2017,12/05/2017,209389,"T00 2,157",480,ZEBRA TRAINING SERVICES,CR422646,Human Resources,Training,130
http://statistics.data.gov.uk/id/local-authority/12UE,Huntingdonshire District Council,16/05/2017,17/05/2017,209613,517015,480,LEISURE INNOVATIONS LIMITED,CR422869,One Leisure St Ives,Building Mtce,303
http://statistics.data.gov.uk/id/local-authority/12UE,Huntingdonshire District Council,16/05/2017,17/05/2017,209614,517024,480,LEISURE INNOVATIONS LIMITED,CR422869,One Leisure St Ives,Building Mtce,303
http://statistics.data.gov.uk/id/local-authority/12UE,Huntingdonshire District Council,16/05/2017,17/05/2017,209615,517016,480,LEISURE INNOVATIONS LIMITED,CR422869,One Leisure St Ives,Building Mtce,303
http://statistics.data.gov.uk/id/local-authority/12UE,Huntingdonshire District Council,09/05/2017,09/05/2017,209140,30966,475,BRIDGE FIBRE LIMITED,CR424041,One Leisure Corporate Mgt,Building Mtce,303
http://statistics.data.gov.uk/id/local-authority/12UE,Huntingdonshire District Council,25/05/2017,25/05/2017,209579,IN0596639,474.85,STAFFLINE GROUP,CR416827,Domestic Refuse,Hired Staff,100
http://statistics.data.gov.uk/id/local-authority/12UE,Huntingdonshire District Council,17/05/2017,18/05/2017,209415,159584,467.11,PRIDEN ENGINEERING LIMITED,CR423487,Grounds Maintenance,Vehicle Parts & Fittings,625
http://statistics.data.gov.uk/id/local-authority/12UE,Huntingdonshire District Council,23/05/2017,23/05/2017,612045,SPECIAL LEVY,463.4,WOODWALTON INTERNAL DRAINAGE BOARD,CR404104,Internal Drainage Boards,Levies,861
http://statistics.data.gov.uk/id/local-authority/12UE,Huntingdonshire District Council,09/05/2017,09/05/2017,209546,274314,462.13,FIRST RECRUITMENT GROUP LTD,CR424012,Financial Services Mus,Hired Staff,100
http://statistics.data.gov.uk/id/local-authority/12UE,Huntingdonshire District Council,23/05/2017,23/05/2017,210315,275822,462.13,FIRST RECRUITMENT GROUP LTD,CR424012,Financial Services Mus,Hired Staff,100
http://statistics.data.gov.uk/id/local-authority/12UE,Huntingdonshire District Council,16/05/2017,17/05/2017,209786,INV081612,409.86,SLUSH PUPPIE LTD,CR455958,One Leisure St Ives,Catering Materials,559
http://statistics.data.gov.uk/id/local-authority/12UE,Huntingdonshire District Council,16/05/2017,17/05/2017,209786,INV081612,48.92,SLUSH PUPPIE LTD,CR455958,One Leisure St Ives,Materials,550
http://statistics.data.gov.uk/id/local-authority/12UE,Huntingdonshire District Council,25/05/2017,25/05/2017,209582,403777,454.6,SMI GROUP,CR423139,Domestic Refuse,Protective Clothing & Uniforms,163
http://statistics.data.gov.uk/id/local-authority/12UE,Huntingdonshire District Council,31/05/2017,31/05/2017,210438,850372,407.88,J P LENNARD LTD,CR028595,One Leisure Sawtry,Equipment,500
http://statistics.data.gov.uk/id/local-authority/12UE,Huntingdonshire District Council,31/05/2017,31/05/2017,210438,850372,45.45,J P LENNARD LTD,CR028595,One Leisure Sawtry,Materials,550
http://statistics.data.gov.uk/id/local-authority/12UE,Huntingdonshire District Council,24/05/2017,24/05/2017,210063,1036873,49.8,TAYLOR MADE DESIGNS,CR417271,One Leisure Huntingdon,Protective Clothing & Uniforms,163
http://statistics.data.gov.uk/id/local-authority/12UE,Huntingdonshire District Council,24/05/2017,24/05/2017,210063,1036873,74.7,TAYLOR MADE DESIGNS,CR417271,One Leisure Ramsey,Protective Clothing & Uniforms,163
http://statistics.data.gov.uk/id/local-authority/12UE,Huntingdonshire District Council,24/05/2017,24/05/2017,210063,1036873,326.75,TAYLOR MADE DESIGNS,CR417271,One Leisure St Ives,Protective Clothing & Uniforms,163
http://statistics.data.gov.uk/id/local-authority/12UE,Huntingdonshire District Council,23/05/2017,25/05/2017,612038,16/01902/FP,450,BOUYGUES E & S F M UK LTD,CR424762,B Regs Applications,Application Fee,A10
http://statistics.data.gov.uk/id/local-authority/12UE,Huntingdonshire District Council,05/05/2017,05/05/2017,209364,20879,444.8,BH DOORS & ENGINEERING LTD,CR455707,Pathfinder House Site,Building Mtce,303
http://statistics.data.gov.uk/id/local-authority/12UE,Huntingdonshire District Council,04/05/2017,17/05/2017,208811,460413,439.48,STORM TECHNOLOGIES,CR480909,Imd Shared Service,Other I T Hardware,203
http://statistics.data.gov.uk/id/local-authority/12UE,Huntingdonshire District Council,11/05/2017,11/05/2017,208723,96340495,131.43,TERBERG MATEC UK LTD,CR402183,Recycling,Vehicle Parts & Fittings,625
http://statistics.data.gov.uk/id/local-authority/12UE,Huntingdonshire District Council,11/05/2017,11/05/2017,208723,96340495,306.67,TERBERG MATEC UK LTD,CR402183,Domestic Refuse,Vehicle Parts & Fittings,625
http://statistics.data.gov.uk/id/local-authority/12UE,Huntingdonshire District Council,11/05/2017,11/05/2017,209443,384/735,437.5,JAZ YORKS LTD,CR160753,Homelessness Management,Bed & Breakfast Payment,818
http://statistics.data.gov.uk/id/local-authority/12UE,Huntingdonshire District Council,11/05/2017,11/05/2017,209444,384/738,437.5,JAZ YORKS LTD,CR160753,Homelessness Management,Bed & Breakfast Payment,818
http://statistics.data.gov.uk/id/local-authority/12UE,Huntingdonshire District Council,09/05/2017,11/05/2017,209542,560517,434.69,ECOCLEEN SERVICES LIMITED,CR406985,Countryside,Building Cleaning,440
http://statistics.data.gov.uk/id/local-authority/12UE,Huntingdonshire District Council,08/05/2017,08/05/2017,209398,35003,431.9,MEYER SCOTT RECRUITMENT LIMITED,CR422369,Financial Services Mus,Hired Staff,100
http://statistics.data.gov.uk/id/local-authority/12UE,Huntingdonshire District Council,04/05/2017,04/05/2017,209194,HSMLI170075,430.44,HORNBILL SERVICE MANAGEMENT LIMITED,CR423491,Imd Shared Service,Hired Staff,100
http://statistics.data.gov.uk/id/local-authority/12UE,Huntingdonshire District Council,25/05/2017,25/05/2017,209572,IN0596101,428.7,STAFFLINE GROUP,CR416827,Domestic Refuse,Hired Staff,100
http://statistics.data.gov.uk/id/local-authority/12UE,Huntingdonshire District Council,09/05/2017,09/05/2017,209512,316651,65.36,SOUTH LINCS FOOD SERVICE,CR033415,One Leisure St Ives,Bar Provisions,558
http://statistics.data.gov.uk/id/local-authority/12UE,Huntingdonshire District Council,09/05/2017,09/05/2017,209512,316651,144.28,SOUTH LINCS FOOD SERVICE,CR033415,One Leisure St Ives,Catering Materials,559
http://statistics.data.gov.uk/id/local-authority/12UE,Huntingdonshire District Council,09/05/2017,09/05/2017,209512,316651,98.53,SOUTH LINCS FOOD SERVICE,CR033415,One Leisure St Ives,Confectionery,572
http://statistics.data.gov.uk/id/local-authority/12UE,Huntingdonshire District Council,09/05/2017,09/05/2017,209512,316651,90.6,SOUTH LINCS FOOD SERVICE,CR033415,One Leisure St Ives,Materials,550
http://statistics.data.gov.uk/id/local-authority/12UE,Huntingdonshire District Council,09/05/2017,09/05/2017,209512,316651,27.48,SOUTH LINCS FOOD SERVICE,CR033415,One Leisure St Ives,Vending Materials,560
http://statistics.data.gov.uk/id/local-authority/12UE,Huntingdonshire District Council,03/05/2017,03/05/2017,209136,B020517,75,JACOBS,CR422350,Council Tax,Bailiffs,703
http://statistics.data.gov.uk/id/local-authority/12UE,Huntingdonshire District Council,03/05/2017,03/05/2017,209136,B020517,351.07,JACOBS,CR422350,Council Tax,Bailiffs,703
http://statistics.data.gov.uk/id/local-authority/12UE,Huntingdonshire District Council,31/05/2017,31/05/2017,210652,13469,425.92,PLAYFORDS LTD,CR479055,Imd Shared Service,Other I T Hardware,203
http://statistics.data.gov.uk/id/local-authority/12UE,Huntingdonshire District Council,24/05/2017,24/05/2017,210056,OLSI0102,420.95,NJL PROPERTY SOLUTIONS,CR423380,One Leisure St Ives,Building Mtce,303
http://statistics.data.gov.uk/id/local-authority/12UE,Huntingdonshire District Council,12/05/2017,12/05/2017,209815,10324138,420,MOORE PARAGON UK LIMITED PSS,CR030863,Document Centre,Paper,562
http://statistics.data.gov.uk/id/local-authority/12UE,Huntingdonshire District Council,16/05/2017,17/05/2017,209657,6911,419,THE POOL & SPA SPECIALISTS LTD,CR424623,One Leisure St Neots,Building Mtce,303
http://statistics.data.gov.uk/id/local-authority/12UE,Huntingdonshire District Council,03/05/2017,03/05/2017,209072,INV-0064,104.17,WAMO SPORTS LTD,CR423559,One Leisure Huntingdon,Licences,730
http://statistics.data.gov.uk/id/local-authority/12UE,Huntingdonshire District Council,03/05/2017,03/05/2017,209072,INV-0064,52.08,WAMO SPORTS LTD,CR423559,One Leisure Ramsey,Licences,730
http://statistics.data.gov.uk/id/local-authority/12UE,Huntingdonshire District Council,03/05/2017,03/05/2017,209072,INV-0064,52.08,WAMO SPORTS LTD,CR423559,One Leisure Sawtry,Licences,730
http://statistics.data.gov.uk/id/local-authority/12UE,Huntingdonshire District Council,03/05/2017,03/05/2017,209072,INV-0064,104.17,WAMO SPORTS LTD,CR423559,One Leisure St Ives,Licences,730
http://statistics.data.gov.uk/id/local-authority/12UE,Huntingdonshire District Council,03/05/2017,03/05/2017,209072,INV-0064,104.17,WAMO SPORTS LTD,CR423559,One Leisure St Neots,Licences,730
http://statistics.data.gov.uk/id/local-authority/12UE,Huntingdonshire District Council,16/05/2017,17/05/2017,209935,319185,324.77,SOUTH LINCS FOOD SERVICE,CR033415,One Leisure St Ives,Catering Materials,559
http://statistics.data.gov.uk/id/local-authority/12UE,Huntingdonshire District Council,16/05/2017,17/05/2017,209935,319185,83.98,SOUTH LINCS FOOD SERVICE,CR033415,One Leisure St Ives,Materials,550
http://statistics.data.gov.uk/id/local-authority/12UE,Huntingdonshire District Council,17/05/2017,18/05/2017,209423,61499118,405.8,JOHNSTON ENGINEERING LTD,CR029831,Street Cleaning,Vehicle Parts & Fittings,625
http://statistics.data.gov.uk/id/local-authority/12UE,Huntingdonshire District Council,31/05/2017,31/05/2017,210705,80871,402.62,SNACKLINE DIRECT LTD,CR478090,One Leisure St Neots,Vending Materials,560
http://statistics.data.gov.uk/id/local-authority/12UE,Huntingdonshire District Council,11/05/2017,16/05/2017,209414,1278,400,BURTON CAR DISPOSAL,CR032715,Nuisances,Removal/Storage,750
http://statistics.data.gov.uk/id/local-authority/12UE,Huntingdonshire District Council,11/05/2017,11/05/2017,209661,1058,400,BLUE PRAWN DESIGN LTD,CR422809,Business & Enterprise Support,Subcontractors,777
http://statistics.data.gov.uk/id/local-authority/12UE,Huntingdonshire District Council,17/05/2017,17/05/2017,209999,1000018,400,EAST OF ENGLAND LGA,CR422620,Human Resources,Corporate Subscriptions,754
http://statistics.data.gov.uk/id/local-authority/12UE,Huntingdonshire District Council,11/05/2017,11/05/2017,209092,581171804,397.72,SWALEC,CR407130,Parks & Open Spaces,Electricity,420
http://statistics.data.gov.uk/id/local-authority/12UE,Huntingdonshire District Council,09/05/2017,09/05/2017,209439,22403,397.5,SHOW & EVENT SECURITY,CR422363,One Leisure St Ives,Hired Staff,100
http://statistics.data.gov.uk/id/local-authority/12UE,Huntingdonshire District Council,09/05/2017,11/05/2017,209498,SN2640058,397.5,BERENDSEN,CR478298,Fleet Management,Materials,550
http://statistics.data.gov.uk/id/local-authority/12UE,Huntingdonshire District Council,09/05/2017,11/05/2017,209377,DE11033733,397.11,DENNIS EAGLE LTD,CR000200,Recycling,Vehicle Parts & Fittings,625
http://statistics.data.gov.uk/id/local-authority/12UE,Huntingdonshire District Council,18/05/2017,18/05/2017,210038,464786,389.35,STORM TECHNOLOGIES,CR480909,Imd Shared Service,Other I T Hardware,203
http://statistics.data.gov.uk/id/local-authority/12UE,Huntingdonshire District Council,04/05/2017,04/05/2017,209179,5719,388.13,HUNTS FORUM OF VOLUNTARY ORGANISATIONS,CR030582,Commercial Properties,Building Mtce,303
http://statistics.data.gov.uk/id/local-authority/12UE,Huntingdonshire District Council,04/05/2017,04/05/2017,209180,5776,388.13,HUNTS FORUM OF VOLUNTARY ORGANISATIONS,CR030582,Commercial Properties,Building Mtce,303
http://statistics.data.gov.uk/id/local-authority/12UE,Huntingdonshire District Council,19/05/2017,19/05/2017,210227,2014535,388.12,BCW OFFICE PRODUCTS LTD,CR480889,Markets,Equipment,500
http://statistics.data.gov.uk/id/local-authority/12UE,Huntingdonshire District Council,31/05/2017,31/05/2017,210633,326687,53.11,SOUTH LINCS FOOD SERVICE,CR033415,One Leisure St Ives,Bar Provisions,558
http://statistics.data.gov.uk/id/local-authority/12UE,Huntingdonshire District Council,31/05/2017,31/05/2017,210633,326687,148,SOUTH LINCS FOOD SERVICE,CR033415,One Leisure St Ives,Catering Materials,559
http://statistics.data.gov.uk/id/local-authority/12UE,Huntingdonshire District Council,31/05/2017,31/05/2017,210633,326687,69.67,SOUTH LINCS FOOD SERVICE,CR033415,One Leisure St Ives,Confectionery,572
http://statistics.data.gov.uk/id/local-authority/12UE,Huntingdonshire District Council,31/05/2017,31/05/2017,210633,326687,87.97,SOUTH LINCS FOOD SERVICE,CR033415,One Leisure St Ives,Materials,550
http://statistics.data.gov.uk/id/local-authority/12UE,Huntingdonshire District Council,31/05/2017,31/05/2017,210633,326687,27.48,SOUTH LINCS FOOD SERVICE,CR033415,One Leisure St Ives,Vending Materials,560
http://statistics.data.gov.uk/id/local-authority/12UE,Huntingdonshire District Council,18/05/2017,18/05/2017,209558,96341123,383.46,TERBERG MATEC UK LTD,CR402183,Domestic Refuse,Vehicle Parts & Fittings,625
http://statistics.data.gov.uk/id/local-authority/12UE,Huntingdonshire District Council,08/05/2017,11/05/2017,209103,40736,373.5,COMMUNICATIONS SOLUTIONS UK LTD,COMMUNIC,Licences,Equipment,500
http://statistics.data.gov.uk/id/local-authority/12UE,Huntingdonshire District Council,08/05/2017,11/05/2017,209103,40736,7.95,COMMUNICATIONS SOLUTIONS UK LTD,COMMUNIC,Licences,Postage,231
http://statistics.data.gov.uk/id/local-authority/12UE,Huntingdonshire District Council,31/05/2017,31/05/2017,210046,40765,381.45,COMMUNICATIONS SOLUTIONS UK LTD,COMMUNIC,Imd Shared Service,Other I T Hardware,203
http://statistics.data.gov.uk/id/local-authority/12UE,Huntingdonshire District Council,03/05/2017,03/05/2017,209027,37203,380,MAINLINE LIFTING EQUIPMENT,CR479016,One Leisure St Ives,Equipment Maintenance,511
http://statistics.data.gov.uk/id/local-authority/12UE,Huntingdonshire District Council,16/05/2017,17/05/2017,209666,506361,380,REMARK GROUP,CR424637,Leisure Centres Capital,Building Mtce,303
http://statistics.data.gov.uk/id/local-authority/12UE,Huntingdonshire District Council,16/05/2017,17/05/2017,209840,ASM240417D,380,ASPECT SAFETY MIRRORS,CR424727,One Leisure St Ives,Equipment,500
http://statistics.data.gov.uk/id/local-authority/12UE,Huntingdonshire District Council,12/05/2017,12/05/2017,611684,323782,378.78,NORTHAMPTONSHIRE COUNTY COUNCIL,CR416282,Human Resources,Recruitment Costs,120
http://statistics.data.gov.uk/id/local-authority/12UE,Huntingdonshire District Council,31/05/2017,31/05/2017,210600,38SI 3847689,375.6,BRENNTAG UK LTD,CR015017,One Leisure Ramsey,Chemicals,551
http://statistics.data.gov.uk/id/local-authority/12UE,Huntingdonshire District Council,31/05/2017,31/05/2017,210382,968,375,MIRAMAR ENGINEERING LTD,CR424694,One Leisure St Ives,Building Mtce,303
http://statistics.data.gov.uk/id/local-authority/12UE,Huntingdonshire District Council,16/05/2017,17/05/2017,209791,18305,372.5,WARBOYS SERVICES LTD,CR000841,One Leisure Huntingdon,Building Mtce,303
http://statistics.data.gov.uk/id/local-authority/12UE,Huntingdonshire District Council,18/05/2017,18/05/2017,209966,2103442522,364.28,BOOKER CASH AND CARRY,CR027611,Countryside,Catering Materials,559
http://statistics.data.gov.uk/id/local-authority/12UE,Huntingdonshire District Council,18/05/2017,18/05/2017,209966,2103442522,8.18,BOOKER CASH AND CARRY,CR027611,Countryside,Materials,550
http://statistics.data.gov.uk/id/local-authority/12UE,Huntingdonshire District Council,16/05/2017,17/05/2017,209602,661082,353.14,LACONS,CR422174,One Leisure St Ives,Bar Provisions,558
http://statistics.data.gov.uk/id/local-authority/12UE,Huntingdonshire District Council,16/05/2017,17/05/2017,209602,661082,16,LACONS,CR422174,One Leisure St Ives,Gas Cylinders (Incl. Bars),567
http://statistics.data.gov.uk/id/local-authority/12UE,Huntingdonshire District Council,03/05/2017,03/05/2017,209062,314743,325.36,SOUTH LINCS FOOD SERVICE,CR033415,One Leisure St Ives,Catering Materials,559
http://statistics.data.gov.uk/id/local-authority/12UE,Huntingdonshire District Council,03/05/2017,03/05/2017,209062,314743,7.54,SOUTH LINCS FOOD SERVICE,CR033415,One Leisure St Ives,Cleaning Materials,443
http://statistics.data.gov.uk/id/local-authority/12UE,Huntingdonshire District Council,03/05/2017,03/05/2017,209062,314743,35.91,SOUTH LINCS FOOD SERVICE,CR033415,One Leisure St Ives,Materials,550
http://statistics.data.gov.uk/id/local-authority/12UE,Huntingdonshire District Council,18/05/2017,18/05/2017,210042,106369/110117,367.45,GALTEC SOLUTIONS LTD,CR423396,Imd Shared Service,Other I T Hardware,203
http://statistics.data.gov.uk/id/local-authority/12UE,Huntingdonshire District Council,24/05/2017,24/05/2017,210307,663297,363.28,LACONS,CR422174,One Leisure St Ives,Bar Provisions,558
http://statistics.data.gov.uk/id/local-authority/12UE,Huntingdonshire District Council,03/05/2017,03/05/2017,209121,273744,362.21,FIRST RECRUITMENT GROUP LTD,CR424012,Financial Services Mus,Hired Staff,100
http://statistics.data.gov.uk/id/local-authority/12UE,Huntingdonshire District Council,16/05/2017,16/05/2017,209943,LI00002566,360,HAPPY SERIOUS LEARNING,CR455473,Customer Service Centres,Conferences,137
http://statistics.data.gov.uk/id/local-authority/12UE,Huntingdonshire District Council,09/05/2017,09/05/2017,209093,759050,359.18,BEN BURGESS & COMPANY,CR453903,One Leisure St Ives,Vehicle Maintenance External,619
http://statistics.data.gov.uk/id/local-authority/12UE,Huntingdonshire District Council,03/05/2017,03/05/2017,209149,3103347076,333.37,BOOKER CASH AND CARRY,CR027611,Countryside,Catering Materials,559
http://statistics.data.gov.uk/id/local-authority/12UE,Huntingdonshire District Council,03/05/2017,03/05/2017,209149,3103347076,25.15,BOOKER CASH AND CARRY,CR027611,Countryside,Materials,550
http://statistics.data.gov.uk/id/local-authority/12UE,Huntingdonshire District Council,09/05/2017,09/05/2017,209151,161513,356.8,CHEMAIDE LIMITED,CR416597,One Leisure Huntingdon,Cleaning Materials,443
http://statistics.data.gov.uk/id/local-authority/12UE,Huntingdonshire District Council,17/05/2017,18/05/2017,209985,17-718-MR,355.45,GB SPORT & LEISURE UK LTD,CR482429,Parks & Open Spaces,Playground Equipment,360
http://statistics.data.gov.uk/id/local-authority/12UE,Huntingdonshire District Council,31/05/2017,31/05/2017,210716,517069,355,LEISURE INNOVATIONS LIMITED,CR422869,One Leisure St Neots,Equipment Maintenance,511
http://statistics.data.gov.uk/id/local-authority/12UE,Huntingdonshire District Council,31/05/2017,31/05/2017,210717,517070,355,LEISURE INNOVATIONS LIMITED,CR422869,One Leisure St Neots,Equipment Maintenance,511
http://statistics.data.gov.uk/id/local-authority/12UE,Huntingdonshire District Council,31/05/2017,31/05/2017,210719,517067,355,LEISURE INNOVATIONS LIMITED,CR422869,One Leisure St Neots,Equipment Maintenance,511
http://statistics.data.gov.uk/id/local-authority/12UE,Huntingdonshire District Council,31/05/2017,31/05/2017,210720,517068,355,LEISURE INNOVATIONS LIMITED,CR422869,One Leisure St Neots,Equipment Maintenance,511
http://statistics.data.gov.uk/id/local-authority/12UE,Huntingdonshire District Council,17/05/2017,18/05/2017,209781,23948,354.96,B. S. GRAVES ELECTRICAL LTD,CR000363,Parks & Open Spaces,Building Mtce,303
http://statistics.data.gov.uk/id/local-authority/12UE,Huntingdonshire District Council,08/05/2017,11/05/2017,209433,61795,354.82,MASKEARAID LTD,CR033423,Pathfinder House Site,Cleaning Materials,443
http://statistics.data.gov.uk/id/local-authority/12UE,Huntingdonshire District Council,16/05/2017,17/05/2017,209801,82714081,351.45,ARCHANT HERTS & CAMBS,CR415764,One Leisure St Ives,Advertising/Promoting Services,255
http://statistics.data.gov.uk/id/local-authority/12UE,Huntingdonshire District Council,25/05/2017,25/05/2017,209892,155666,350,TECALEMIT GARAGE EQUIPMENT CO LTD,CR477683,Fleet Management,Equipment Maintenance,511
http://statistics.data.gov.uk/id/local-authority/12UE,Huntingdonshire District Council,24/05/2017,24/05/2017,210272,8343,350,STARLITE ROADSHOW,CR024127,One Leisure St Ives,Entertainments Inc Cable Tv,744
http://statistics.data.gov.uk/id/local-authority/12UE,Huntingdonshire District Council,05/05/2017,07/05/2017,611247,42,350,ARTHUR RANK HOSPICE CHARITY,CR424747,One Leisure Huntingdon,Advertising/Promoting Services,255
http://statistics.data.gov.uk/id/local-authority/12UE,Huntingdonshire District Council,31/05/2017,31/05/2017,210693,MINV209735,349.5,BOTTOMLINE TECHNOLOGIES LTD,CR422020,Scdc Recharge Invoices,Software,206
http://statistics.data.gov.uk/id/local-authority/12UE,Huntingdonshire District Council,09/05/2017,11/05/2017,209477,1704/56045,340,GULLIVERS TRUCK HIRE LTD,CR477663,Domestic Refuse,Vehicle Hire,607
http://statistics.data.gov.uk/id/local-authority/12UE,Huntingdonshire District Council,09/05/2017,11/05/2017,209480,1704/53678,340,GULLIVERS TRUCK HIRE LTD,CR477663,Domestic Refuse,Vehicle Hire,607
http://statistics.data.gov.uk/id/local-authority/12UE,Huntingdonshire District Council,09/05/2017,11/05/2017,209473,4000004618,338.7,1ST CHOICE RECRUITMENT,CR416849,Environmental Management,Hired Staff,100
http://statistics.data.gov.uk/id/local-authority/12UE,Huntingdonshire District Council,09/05/2017,11/05/2017,209545,704272310,174.96,BOOKER CASH AND CARRY,CR027611,Countryside,Catering Materials,559
http://statistics.data.gov.uk/id/local-authority/12UE,Huntingdonshire District Council,09/05/2017,11/05/2017,209545,704272310,163.5,BOOKER CASH AND CARRY,CR027611,Countryside,Catering Materials,559
http://statistics.data.gov.uk/id/local-authority/12UE,Huntingdonshire District Council,17/05/2017,18/05/2017,209884,12489089940,337.79,E-ON ENERGY,CR416430,E F H And Depots,Gas,421
http://statistics.data.gov.uk/id/local-authority/12UE,Huntingdonshire District Council,18/05/2017,18/05/2017,209969,907039,337.69,KING BROS,CR411339,Countryside,Catering Materials,559
http://statistics.data.gov.uk/id/local-authority/12UE,Huntingdonshire District Council,03/05/2017,03/05/2017,611101,9171,332.7,STEVES TAXIS & PRIVATE HIRE,CR155956,Homelessness Management,Travel Expenses,636
http://statistics.data.gov.uk/id/local-authority/12UE,Huntingdonshire District Council,16/05/2017,17/05/2017,209665,SI380004-1,328,RLSS DIRECT,CR401615,One Leisure Ramsey,Materials,550
http://statistics.data.gov.uk/id/local-authority/12UE,Huntingdonshire District Council,03/05/2017,03/05/2017,209148,2103380386,277.01,BOOKER CASH AND CARRY,CR027611,Countryside,Catering Materials,559
http://statistics.data.gov.uk/id/local-authority/12UE,Huntingdonshire District Council,03/05/2017,03/05/2017,209148,2103380386,49.25,BOOKER CASH AND CARRY,CR027611,Countryside,Materials,550
http://statistics.data.gov.uk/id/local-authority/12UE,Huntingdonshire District Council,04/05/2017,04/05/2017,209220,18324,325,VICTOIRE PRESS LTD,CR404724,Elections,Printing (External),220
http://statistics.data.gov.uk/id/local-authority/12UE,Huntingdonshire District Council,09/05/2017,09/05/2017,209353,9989,323.2,SNACKLINE DIRECT LTD,CR478090,One Leisure St Neots,Vending Materials,560
http://statistics.data.gov.uk/id/local-authority/12UE,Huntingdonshire District Council,11/05/2017,11/05/2017,209091,91226466,322.54,SWALEC,CR407130,Off Street Parking,Electricity,420
http://statistics.data.gov.uk/id/local-authority/12UE,Huntingdonshire District Council,11/05/2017,11/05/2017,209440,384/738,320.84,JAZ YORKS LTD,CR160753,Homelessness Management,Bed & Breakfast Payment,818
http://statistics.data.gov.uk/id/local-authority/12UE,Huntingdonshire District Council,11/05/2017,11/05/2017,209441,384/737,320.84,JAZ YORKS LTD,CR160753,Homelessness Management,Bed & Breakfast Payment,818
http://statistics.data.gov.uk/id/local-authority/12UE,Huntingdonshire District Council,11/05/2017,11/05/2017,209442,384/740,320.84,JAZ YORKS LTD,CR160753,Homelessness Management,Bed & Breakfast Payment,818
http://statistics.data.gov.uk/id/local-authority/12UE,Huntingdonshire District Council,31/05/2017,31/05/2017,210643,2489,319.75,FLEXEREFRIGERATION LTD,CR422336,One Leisure St Ives,Equipment Maintenance,511
http://statistics.data.gov.uk/id/local-authority/12UE,Huntingdonshire District Council,09/05/2017,09/05/2017,209359,4415732,212.41,ESPO,CR006566,One Leisure Huntingdon,Cleaning Materials,443
http://statistics.data.gov.uk/id/local-authority/12UE,Huntingdonshire District Council,09/05/2017,09/05/2017,209359,4415732,44.56,ESPO,CR006566,One Leisure Huntingdon,Equipment,500
http://statistics.data.gov.uk/id/local-authority/12UE,Huntingdonshire District Council,09/05/2017,09/05/2017,209359,4415732,55.48,ESPO,CR006566,One Leisure Huntingdon,Materials,550
http://statistics.data.gov.uk/id/local-authority/12UE,Huntingdonshire District Council,09/05/2017,09/05/2017,209359,4415732,4.98,ESPO,CR006566,One Leisure Huntingdon,Stationery,225
http://statistics.data.gov.uk/id/local-authority/12UE,Huntingdonshire District Council,04/05/2017,17/05/2017,208820,OP/I796967,313.64,PHOENIX SOFTWARE LTD,CR031918,Imd Shared Service,Software,206
http://statistics.data.gov.uk/id/local-authority/12UE,Huntingdonshire District Council,11/05/2017,11/05/2017,209114,SI-091767,310,TOTAL KARE HDWS LTD,CR408287,Fleet Management,Equipment,500
http://statistics.data.gov.uk/id/local-authority/12UE,Huntingdonshire District Council,31/05/2017,31/05/2017,210424,SIN17WTH02280,310,INDUSTRIAL CHEMICALS LIMITED,CR424772,One Leisure Sawtry,Chemicals,551
http://statistics.data.gov.uk/id/local-authority/12UE,Huntingdonshire District Council,01/05/2017,04/05/2017,209209,55880384,309.76,ARCHANT HERTS & CAMBS,CR415764,Domestic Refuse,Advertising/Promoting Services,255
http://statistics.data.gov.uk/id/local-authority/12UE,Huntingdonshire District Council,04/05/2017,04/05/2017,209202,34882,308.25,MEYER SCOTT RECRUITMENT LIMITED,CR422369,Financial Services Mus,Hired Staff,100
http://statistics.data.gov.uk/id/local-authority/12UE,Huntingdonshire District Council,09/05/2017,09/05/2017,209474,80142,305.53,SNACKLINE DIRECT LTD,CR478090,One Leisure Huntingdon,Vending Materials,560
http://statistics.data.gov.uk/id/local-authority/12UE,Huntingdonshire District Council,25/05/2017,25/05/2017,210289,4000004728,304.83,1ST CHOICE RECRUITMENT,CR416849,Environmental Management,Hired Staff,100
http://statistics.data.gov.uk/id/local-authority/12UE,Huntingdonshire District Council,16/05/2017,17/05/2017,209680,277613,303.15,WALKER FIRE UK LTD,CR455756,One Leisure St Neots,Fire & Security,450
http://statistics.data.gov.uk/id/local-authority/12UE,Huntingdonshire District Council,16/05/2017,17/05/2017,209607,1130815165,301.67,KONICA MINOLTA,CR478866,One Leisure Huntingdon,Equipment,500
http://statistics.data.gov.uk/id/local-authority/12UE,Huntingdonshire District Council,03/05/2017,03/05/2017,209071,2406,301.17,FLEXEREFRIGERATION LTD,CR422336,One Leisure St Ives,Equipment Maintenance,511
http://statistics.data.gov.uk/id/local-authority/12UE,Huntingdonshire District Council,03/05/2017,03/05/2017,209141,43357,300,LAYTONDINGS ENTERTAINMENT LTD,CR412228,One Leisure St Ives,Entertainments Inc Cable Tv,744
http://statistics.data.gov.uk/id/local-authority/12UE,Huntingdonshire District Council,24/05/2017,25/05/2017,210313,Jun-16,300,THE STATION HOTEL,CR453752,Homelessness Management,Bed & Breakfast Payment,818
http://statistics.data.gov.uk/id/local-authority/12UE,Huntingdonshire District Council,09/05/2017,10/05/2017,611292,POLLSTATIONMAY,300,FENSTANTON CHURCH CENTRE,CR021563,Elections,Hire Of Rooms,411
http://statistics.data.gov.uk/id/local-authority/12UE,Huntingdonshire District Council,09/05/2017,10/05/2017,611307,POLLSTATIONMAY,300,NEEDINGWORTH VILLAGE HALL,CR402257,Elections,Hire Of Rooms,411
http://statistics.data.gov.uk/id/local-authority/12UE,Huntingdonshire District Council,10/05/2017,10/05/2017,611368,PO28546,300,ALDWYCK HOUSING ASSOCIATION,CR422850,General Creditors,Overpayments Recovered,C93
http://statistics.data.gov.uk/id/local-authority/12UE,Huntingdonshire District Council,17/05/2017,17/05/2017,611718,JUNEPOLLSTATION,300,FENSTANTON CHURCH CENTRE,CR021563,Elections,Hire Of Rooms,411
http://statistics.data.gov.uk/id/local-authority/12UE,Huntingdonshire District Council,17/05/2017,17/05/2017,611733,JUNEPOLLSTATION,300,NEEDINGWORTH VILLAGE HALL,CR402257,Elections,Hire Of Rooms,411
http://statistics.data.gov.uk/id/local-authority/12UE,Huntingdonshire District Council,31/05/2017,31/05/2017,210430,428120,299.25,HEASELL ELECTROMECHANICAL SERVICES LTD,CR422407,Leisure Centres Capital,Building Mtce,303
http://statistics.data.gov.uk/id/local-authority/12UE,Huntingdonshire District Council,17/05/2017,18/05/2017,209418,3350,297.22,K & M LIGHTING SERVICES LTD,CR455166,Off Street Parking,Sitework,359
http://statistics.data.gov.uk/id/local-authority/12UE,Huntingdonshire District Council,31/05/2017,31/05/2017,210608,850498,296.01,J P LENNARD LTD,CR028595,One Leisure St Neots,Equipment,500
http://statistics.data.gov.uk/id/local-authority/12UE,Huntingdonshire District Council,25/05/2017,25/05/2017,210221,171577,294.04,HUNTINGDON TIMBER SUPPLIES,CR482513,Countryside,Materials,550
http://statistics.data.gov.uk/id/local-authority/12UE,Huntingdonshire District Council,08/05/2017,11/05/2017,209626,866189,289.21,PILGRIM FOODSERVICE LTD,CR455695,Countryside,Catering Materials,559
http://statistics.data.gov.uk/id/local-authority/12UE,Huntingdonshire District Council,25/05/2017,25/05/2017,210431,24038,287.5,B. S. GRAVES ELECTRICAL LTD,CR000363,E F H And Depots,Building Mtce,303
http://statistics.data.gov.uk/id/local-authority/12UE,Huntingdonshire District Council,31/05/2017,31/05/2017,209842,662065,222.56,LACONS,CR422174,One Leisure St Ives,Bar Provisions,558
http://statistics.data.gov.uk/id/local-authority/12UE,Huntingdonshire District Council,31/05/2017,31/05/2017,209842,662065,64,LACONS,CR422174,One Leisure St Ives,Gas Cylinders (Incl. Bars),567
http://statistics.data.gov.uk/id/local-authority/12UE,Huntingdonshire District Council,16/05/2017,17/05/2017,209799,17,285,TRIM FIX,CR424751,One Leisure St Ives,Materials,550
http://statistics.data.gov.uk/id/local-authority/12UE,Huntingdonshire District Council,31/05/2017,31/05/2017,210656,477040,284.44,BYTES SOFTWARE SERVICES LTD,CR455210,Imd Shared Service,Software,206
http://statistics.data.gov.uk/id/local-authority/12UE,Huntingdonshire District Council,19/05/2017,19/05/2017,209867,841226380,283.96,SWALEC,CR407130,Off Street Parking,Electricity,420
http://statistics.data.gov.uk/id/local-authority/12UE,Huntingdonshire District Council,31/05/2017,31/05/2017,210668,EXPENSES MAY 17,283.52,CENTRE THEATRE PLAYERS,CR006851,One Leisure St Ives,Entertainments Inc Cable Tv,744
http://statistics.data.gov.uk/id/local-authority/12UE,Huntingdonshire District Council,09/05/2017,09/05/2017,209517,315983,229.4,SOUTH LINCS FOOD SERVICE,CR033415,One Leisure St Ives,Catering Materials,559
http://statistics.data.gov.uk/id/local-authority/12UE,Huntingdonshire District Council,09/05/2017,09/05/2017,209517,315983,14.31,SOUTH LINCS FOOD SERVICE,CR033415,One Leisure St Ives,Confectionery,572
http://statistics.data.gov.uk/id/local-authority/12UE,Huntingdonshire District Council,09/05/2017,09/05/2017,209517,315983,39.6,SOUTH LINCS FOOD SERVICE,CR033415,One Leisure St Ives,Materials,550
http://statistics.data.gov.uk/id/local-authority/12UE,Huntingdonshire District Council,24/05/2017,24/05/2017,210279,80639,280.99,SNACKLINE DIRECT LTD,CR478090,One Leisure Huntingdon,Vending Materials,560
http://statistics.data.gov.uk/id/local-authority/12UE,Huntingdonshire District Council,25/05/2017,25/05/2017,209573,IN0596099,280.5,STAFFLINE GROUP,CR416827,Recycling,Hired Staff,100
http://statistics.data.gov.uk/id/local-authority/12UE,Huntingdonshire District Council,09/05/2017,09/05/2017,209213,17526,280,BIGPRINTING,CR416383,One Leisure St Ives,Advertising/Promoting Services,255
http://statistics.data.gov.uk/id/local-authority/12UE,Huntingdonshire District Council,18/05/2017,25/05/2017,209898,EMP6435,279,E M PUBLISHING CO UK,CR415750,Nuisances,Corporate Subscriptions,754
http://statistics.data.gov.uk/id/local-authority/12UE,Huntingdonshire District Council,24/05/2017,24/05/2017,210243,NOR11693R,275.35,NORFOLK CANOES,CR422789,One Leisure St Neots,Equipment,500
http://statistics.data.gov.uk/id/local-authority/12UE,Huntingdonshire District Council,11/05/2017,16/05/2017,209819,11087,275,THE CCTV USER GROUP,CR453944,Cctv Shared Service,Corporate Subscriptions,754
http://statistics.data.gov.uk/id/local-authority/12UE,Huntingdonshire District Council,31/05/2017,31/05/2017,210441,14748791,7.5,NISBETS,CR412311,One Leisure St Ives,Cleaning Materials,443
http://statistics.data.gov.uk/id/local-authority/12UE,Huntingdonshire District Council,31/05/2017,31/05/2017,210441,14748791,7.49,NISBETS,CR412311,One Leisure St Neots,Cleaning Materials,443
http://statistics.data.gov.uk/id/local-authority/12UE,Huntingdonshire District Council,31/05/2017,31/05/2017,210441,14748791,259.98,NISBETS,CR412311,One Leisure St Ives,Materials,550
http://statistics.data.gov.uk/id/local-authority/12UE,Huntingdonshire District Council,16/05/2017,16/05/2017,209914,275219,274.78,FIRST RECRUITMENT GROUP LTD,CR424012,Financial Services Mus,Hired Staff,100
http://statistics.data.gov.uk/id/local-authority/12UE,Huntingdonshire District Council,22/05/2017,22/05/2017,210000,8055696662,274.54,ANGLIAN WATER,CR000071,One Leisure St Ives,Water & Sewerage,432
http://statistics.data.gov.uk/id/local-authority/12UE,Huntingdonshire District Council,19/05/2017,19/05/2017,210066,6805877,28.88,ANTALIS LTD,CR479468,Document Centre,Paper,562
http://statistics.data.gov.uk/id/local-authority/12UE,Huntingdonshire District Council,19/05/2017,19/05/2017,210066,6805877,245,ANTALIS LTD,CR479468,Document Centre,Paper,562
http://statistics.data.gov.uk/id/local-authority/12UE,Huntingdonshire District Council,09/05/2017,09/05/2017,209532,2103384640,130.92,BOOKER CASH AND CARRY,CR027611,One Leisure St Ives,Bar Provisions,558
http://statistics.data.gov.uk/id/local-authority/12UE,Huntingdonshire District Council,09/05/2017,09/05/2017,209532,2103384640,42.11,BOOKER CASH AND CARRY,CR027611,One Leisure St Ives,Catering Materials,559
http://statistics.data.gov.uk/id/local-authority/12UE,Huntingdonshire District Council,09/05/2017,09/05/2017,209532,2103384640,8.99,BOOKER CASH AND CARRY,CR027611,One Leisure St Ives,Cleaning Materials,443
http://statistics.data.gov.uk/id/local-authority/12UE,Huntingdonshire District Council,09/05/2017,09/05/2017,209532,2103384640,61.99,BOOKER CASH AND CARRY,CR027611,One Leisure St Ives,Materials,550
http://statistics.data.gov.uk/id/local-authority/12UE,Huntingdonshire District Council,09/05/2017,09/05/2017,209532,2103384640,28.73,BOOKER CASH AND CARRY,CR027611,One Leisure St Neots,Materials,550
http://statistics.data.gov.uk/id/local-authority/12UE,Huntingdonshire District Council,11/05/2017,16/05/2017,209838,Q031 FY,232,BRITISH TELECOMMUNICATIONS PLC,CR027071,Cctv Shared Service,Telephone &Mobile Phonecharges,240
http://statistics.data.gov.uk/id/local-authority/12UE,Huntingdonshire District Council,11/05/2017,16/05/2017,209838,Q031 FY,40,BRITISH TELECOMMUNICATIONS PLC,CR027071,Cctv Shared Service,Telephone &Mobile Phonecharges,240
http://statistics.data.gov.uk/id/local-authority/12UE,Huntingdonshire District Council,16/05/2017,17/05/2017,209788,2103150816,5.47,BOOKER CASH AND CARRY,CR027611,One Leisure Sawtry,Materials,550
http://statistics.data.gov.uk/id/local-authority/12UE,Huntingdonshire District Council,16/05/2017,17/05/2017,209788,2103150816,261.95,BOOKER CASH AND CARRY,CR027611,One Leisure Sawtry,Vending Materials,560
http://statistics.data.gov.uk/id/local-authority/12UE,Huntingdonshire District Council,18/05/2017,18/05/2017,209583,404277,266.49,SMI GROUP,CR423139,Street Cleaning,Protective Clothing & Uniforms,163
http://statistics.data.gov.uk/id/local-authority/12UE,Huntingdonshire District Council,31/05/2017,31/05/2017,210606,GM15294,263,GARNER MEDICAL LTD,CR003972,One Leisure St Neots,Equipment Maintenance,511
http://statistics.data.gov.uk/id/local-authority/12UE,Huntingdonshire District Council,11/05/2017,11/05/2017,209445,384/736,262.5,JAZ YORKS LTD,CR160753,Homelessness Management,Bed & Breakfast Payment,818
http://statistics.data.gov.uk/id/local-authority/12UE,Huntingdonshire District Council,11/05/2017,11/05/2017,209446,384/739,262.5,JAZ YORKS LTD,CR160753,Homelessness Management,Bed & Breakfast Payment,818
http://statistics.data.gov.uk/id/local-authority/12UE,Huntingdonshire District Council,24/05/2017,24/05/2017,210274,295792,142.89,WESTMINSTER FOODSERVICE,CR455156,One Leisure St Ives,Bar Provisions,558
http://statistics.data.gov.uk/id/local-authority/12UE,Huntingdonshire District Council,24/05/2017,24/05/2017,210274,295792,118.55,WESTMINSTER FOODSERVICE,CR455156,One Leisure St Ives,Catering Materials,559
http://statistics.data.gov.uk/id/local-authority/12UE,Huntingdonshire District Council,18/05/2017,18/05/2017,611791,RE-IMB.OF EXPS.,42.8,MR BRIAN GARDNER,CR412044,Countryside,"Fertilizer,Compost,Bark",557
http://statistics.data.gov.uk/id/local-authority/12UE,Huntingdonshire District Council,18/05/2017,18/05/2017,611791,RE-IMB.OF EXPS.,143.25,REDACTED,CR412044,Countryside,Materials,550
http://statistics.data.gov.uk/id/local-authority/12UE,Huntingdonshire District Council,18/05/2017,18/05/2017,611791,RE-IMB.OF EXPS.,72.2,REDACTED,CR412044,Countryside,Plants And Seeds,556
http://statistics.data.gov.uk/id/local-authority/12UE,Huntingdonshire District Council,18/05/2017,18/05/2017,611791,RE-IMB.OF EXPS.,2.97,REDACTED,CR412044,Countryside,Promotions And Exhibitions,743
http://statistics.data.gov.uk/id/local-authority/12UE,Huntingdonshire District Council,18/05/2017,18/05/2017,209556,38008,260.24,TRINITY ENGINEERING & COMPONENT SUPPLIES LTD,CR455479,Fleet Management,Materials,550
http://statistics.data.gov.uk/id/local-authority/12UE,Huntingdonshire District Council,24/05/2017,24/05/2017,210213,3533587,260,ANGEL SPRINGS LTD,CR423581,One Leisure St Ives,Equipment Hire,507
http://statistics.data.gov.uk/id/local-authority/12UE,Huntingdonshire District Council,31/05/2017,31/05/2017,210662,472189,260,BYTES SOFTWARE SERVICES LTD,CR455210,Imd Shared Service,Software,206
http://statistics.data.gov.uk/id/local-authority/12UE,Huntingdonshire District Council,09/05/2017,10/05/2017,611266,1,260,J C FENDICK,CR424737,Markets,Advertising/Promoting Services,255
http://statistics.data.gov.uk/id/local-authority/12UE,Huntingdonshire District Council,09/05/2017,10/05/2017,611268,2,260,J C FENDICK,CR424737,Markets,Advertising/Promoting Services,255
http://statistics.data.gov.uk/id/local-authority/12UE,Huntingdonshire District Council,24/05/2017,24/05/2017,210338,322571,16.5,SOUTH LINCS FOOD SERVICE,CR033415,One Leisure St Ives,Bar Provisions,558
http://statistics.data.gov.uk/id/local-authority/12UE,Huntingdonshire District Council,24/05/2017,24/05/2017,210338,322571,225.24,SOUTH LINCS FOOD SERVICE,CR033415,One Leisure St Ives,Catering Materials,559
http://statistics.data.gov.uk/id/local-authority/12UE,Huntingdonshire District Council,24/05/2017,24/05/2017,210338,322571,14.31,SOUTH LINCS FOOD SERVICE,CR033415,One Leisure St Ives,Confectionery,572
http://statistics.data.gov.uk/id/local-authority/12UE,Huntingdonshire District Council,09/05/2017,09/05/2017,209530,294869,129.9,WESTMINSTER FOODSERVICE,CR455156,One Leisure St Ives,Bar Provisions,558
http://statistics.data.gov.uk/id/local-authority/12UE,Huntingdonshire District Council,09/05/2017,09/05/2017,209530,294869,107.65,WESTMINSTER FOODSERVICE,CR455156,One Leisure St Ives,Catering Materials,559
http://statistics.data.gov.uk/id/local-authority/12UE,Huntingdonshire District Council,09/05/2017,09/05/2017,209530,294869,18,WESTMINSTER FOODSERVICE,CR455156,One Leisure St Ives,Materials,550
http://statistics.data.gov.uk/id/local-authority/12UE,Huntingdonshire District Council,09/05/2017,09/05/2017,209362,SIV180591,255.38,LES MILLS UK,CR025826,One Leisure St Ives,Licences,730
http://statistics.data.gov.uk/id/local-authority/12UE,Huntingdonshire District Council,09/05/2017,09/05/2017,209438,10432614,255.23,LUCOZADE RIBENA SUNTORY LTD,CR422660,One Leisure St Ives,Vending Materials,560
http://statistics.data.gov.uk/id/local-authority/12UE,Huntingdonshire District Council,31/05/2017,31/05/2017,210428,62079,254.03,MASKEARAID LTD,CR033423,One Leisure St Ives,Cleaning Materials,443
http://statistics.data.gov.uk/id/local-authority/12UE,Huntingdonshire District Council,09/05/2017,10/05/2017,611270,POLLING STATION,252,ALCONBURY MEMORIAL HALL,CR411628,Elections,Hire Of Rooms,411
http://statistics.data.gov.uk/id/local-authority/12UE,Huntingdonshire District Council,17/05/2017,17/05/2017,611697,JUNEPOLLSTATION,252,ALCONBURY MEMORIAL HALL,CR411628,Elections,Hire Of Rooms,411
http://statistics.data.gov.uk/id/local-authority/12UE,Huntingdonshire District Council,16/05/2017,17/05/2017,209656,1130812390,250.42,KONICA MINOLTA,CR478866,One Leisure St Neots,Equipment,500
http://statistics.data.gov.uk/id/local-authority/12UE,Huntingdonshire District Council,08/05/2017,11/05/2017,209431,58000604,250.29,MARSHALL MOTOR GROUP LTD,CR009641,Grounds Maintenance,Vehicle Parts & Fittings,625
http://statistics.data.gov.uk/id/local-authority/12UE,Huntingdonshire District Council,03/05/2017,03/05/2017,209058,261594,250,PRP CONSULTING,CR424006,Ol Hdon Changing Facilities,Building Mtce,303
http://statistics.data.gov.uk/id/local-authority/12UE,Huntingdonshire District Council,12/05/2017,12/05/2017,209792,95503867,250,ARVATO LTD,CR424752,Human Resources,Training,130
http://statistics.data.gov.uk/id/local-authority/12UE,Huntingdonshire District Council,09/05/2017,10/05/2017,611267,POLL BOOTH,250,ABBOTSLEY VILLAGE HALL,CR021486,Elections,Hire Of Rooms,411
http://statistics.data.gov.uk/id/local-authority/12UE,Huntingdonshire District Council,09/05/2017,10/05/2017,611279,POLLSTATIONMAY,250,BURY VILLAGE HALL,CR029962,Elections,Hire Of Rooms,411
http://statistics.data.gov.uk/id/local-authority/12UE,Huntingdonshire District Council,09/05/2017,10/05/2017,611306,POLLSTATIONMAY,250,REDACTED,CR481166,Elections,Hire Of Rooms,411
http://statistics.data.gov.uk/id/local-authority/12UE,Huntingdonshire District Council,09/05/2017,10/05/2017,611341,POLLSTATIONMAY,250,SCOUT HUT EATON FORD,CR016795,Elections,Hire Of Rooms,411
http://statistics.data.gov.uk/id/local-authority/12UE,Huntingdonshire District Council,09/05/2017,10/05/2017,611342,POLLSTATIONMAY,250,EATONS COMMUNITY CENTRE,CR480583,Elections,Hire Of Rooms,411
http://statistics.data.gov.uk/id/local-authority/12UE,Huntingdonshire District Council,17/05/2017,17/05/2017,611695,JUNEPOLLSTATION,250,ABBOTSLEY VILLAGE HALL,CR021486,Elections,Hire Of Rooms,411
http://statistics.data.gov.uk/id/local-authority/12UE,Huntingdonshire District Council,17/05/2017,17/05/2017,611706,JUNEPOLLSTATION,250,BURY VILLAGE HALL,CR029962,Elections,Hire Of Rooms,411
http://statistics.data.gov.uk/id/local-authority/12UE,Huntingdonshire District Council,17/05/2017,17/05/2017,611732,JUNEPOLLSTATION,250,REDACTED,CR481166,Elections,Hire Of Rooms,411
http://statistics.data.gov.uk/id/local-authority/12UE,Huntingdonshire District Council,17/05/2017,17/05/2017,611765,JUNEPOLLSTATION,250,SCOUT HUT EATON FORD,CR016795,Elections,Hire Of Rooms,411
http://statistics.data.gov.uk/id/local-authority/12UE,Huntingdonshire District Council,17/05/2017,17/05/2017,611766,JUNEPOLLSTATION,250,EATONS COMMUNITY CENTRE,CR480583,Elections,Hire Of Rooms,411
http://statistics.data.gov.uk/id/local-authority/12UE,Huntingdonshire District Council,19/05/2017,19/05/2017,611979,JUNEPOLLSTATION,250,REDACTED,CR424768,Elections,Hire Of Rooms,411
http://statistics.data.gov.uk/id/local-authority/12UE,Huntingdonshire District Council,02/05/2017,05/05/2017,209101,9054286231,-277.78,ROYAL MAIL,CR027083,Document Centre,Postage,231
http://statistics.data.gov.uk/id/local-authority/12UE,Huntingdonshire District Council,11/05/2017,11/05/2017,209632,RC-HDC009A,-315,RENT CONNECT,CR424138,Homelessness Management,Bed & Breakfast Payment,818
http://statistics.data.gov.uk/id/local-authority/12UE,Huntingdonshire District Council,11/05/2017,11/05/2017,209569,902732,-415.59,WICKSTEED LEISURE LTD,CR028997,Parks & Open Spaces,Playground Equipment,360
http://statistics.data.gov.uk/id/local-authority/12UE,Huntingdonshire District Council,24/05/2017,24/05/2017,612052,KU09 CMV,-450,DVLA,CR033149,Domestic Refuse,Vehicle Licence,609
http://statistics.data.gov.uk/id/local-authority/12UE,Huntingdonshire District Council,31/05/2017,31/05/2017,612195,04-Apr-17,-450,DVLA,CR033149,Domestic Refuse,Vehicle Licence,609
http://statistics.data.gov.uk/id/local-authority/12UE,Huntingdonshire District Council,31/05/2017,31/05/2017,210692,911427624/0007,-654.62,SWALEC,CR407130,Industrial Properties,Electricity,420
http://statistics.data.gov.uk/id/local-authority/12UE,Huntingdonshire District Council,11/05/2017,11/05/2017,209086,351641485,-885.36,SWALEC,CR407130,Countryside,Electricity,420
http://statistics.data.gov.uk/id/local-authority/12UE,Huntingdonshire District Council,31/05/2017,31/05/2017,612206,S1CR/00000197,-993.87,AXIOM HOUSING ASSOCIATION,CR135177,Homelessness Management,Incentive Payment,816
http://statistics.data.gov.uk/id/local-authority/12UE,Huntingdonshire District Council,16/05/2017,16/05/2017,611694,3401391,"-1,880.00",HM COURTS & TRIBUNALS SERVICE,CR413466,N N D R Administration,Legal Fees,729
http://statistics.data.gov.uk/id/local-authority/12UE,Huntingdonshire District Council,25/05/2017,25/05/2017,210446,26034499,-300,ARCHANT COMMUNITY MEDIA LTD,CR452143,Grounds Maintenance,Advertising/Promoting Services,255
http://statistics.data.gov.uk/id/local-authority/12UE,Huntingdonshire District Council,25/05/2017,25/05/2017,210446,26034499,-190,ARCHANT COMMUNITY MEDIA LTD,CR452143,Domestic Refuse,Advertising/Promoting Services,255
http://statistics.data.gov.uk/id/local-authority/12UE,Huntingdonshire District Council,25/05/2017,25/05/2017,210446,26034499,-152.4,ARCHANT COMMUNITY MEDIA LTD,CR452143,Street Cleaning,Advertising/Promoting Services,255
http://statistics.data.gov.uk/id/local-authority/12UE,Huntingdonshire District Council,25/05/2017,25/05/2017,210446,26034499,-600,ARCHANT COMMUNITY MEDIA LTD,CR452143,Street Cleaning,Advertising/Promoting Services,255
http://statistics.data.gov.uk/id/local-authority/12UE,Huntingdonshire District Council,25/05/2017,25/05/2017,210446,26034499,-657.67,ARCHANT COMMUNITY MEDIA LTD,CR452143,Street Cleaning,Advertising/Promoting Services,255
http://statistics.data.gov.uk/id/local-authority/12UE,Huntingdonshire District Council,16/05/2017,17/05/2017,209959,65922,"-3,074.17",HAVEN POWER LTD,CR455940,One Leisure St Ives,Electricity,420
http://statistics.data.gov.uk/id/local-authority/12UE,Huntingdonshire District Council,16/05/2017,17/05/2017,209957,65919,"-3,240.56",HAVEN POWER LTD,CR455940,One Leisure St Ives,Electricity,420
http://statistics.data.gov.uk/id/local-authority/12UE,Huntingdonshire District Council,16/05/2017,17/05/2017,209958,65922,"-3,317.59",HAVEN POWER LTD,CR455940,One Leisure St Ives,Electricity,420
http://statistics.data.gov.uk/id/local-authority/12UE,Huntingdonshire District Council,24/05/2017,24/05/2017,210360,2749,"-3,400.00",RVS GROUP LTD,CR480777,Domestic Refuse,Vehicle Hire,607
http://statistics.data.gov.uk/id/local-authority/12UE,Huntingdonshire District Council,16/05/2017,17/05/2017,209962,65916,"-3,829.07",HAVEN POWER LTD,CR455940,One Leisure Huntingdon,Electricity,420
http://statistics.data.gov.uk/id/local-authority/12UE,Huntingdonshire District Council,16/05/2017,17/05/2017,209961,65924,"-4,684.58",HAVEN POWER LTD,CR455940,E F H And Depots,Electricity,420
http://statistics.data.gov.uk/id/local-authority/12UE,Huntingdonshire District Council,09/05/2017,09/05/2017,209448,24812,"-6,487.93",CAMBRIDGE CITY COUNCIL,CR017896,Improvement Grants,Home Improvement Agency Fees,724
http://statistics.data.gov.uk/id/local-authority/12UE,Huntingdonshire District Council,16/05/2017,17/05/2017,209970,65914,"-7,169.85",HAVEN POWER LTD,CR455940,One Leisure St Neots,Electricity,420
http://statistics.data.gov.uk/id/local-authority/12UE,Huntingdonshire District Council,16/05/2017,17/05/2017,209960,65912,"-8,342.15",HAVEN POWER LTD,CR455940,Pathfinder House Site,Electricity,420
